Workbook

Sheet E2 aq
A1: Jones (1978) aqueous (probably suspension)
A2: n | B2: 4
A3: Dose | B3: 2
A4: Dose units | B4: mg
A5: Concentrations
A6: Time | B6: Original | C6: Baseline-adjusted | D6: Dose-normalized | E6: Both
A7: 0 | B7: 35.5179704 | C7: =IF(ISBLANK(B7), "", MAX(0,B7-B$7)) -> 0 | D7: =IF(ISBLANK(B7), "", B7/B$3) -> 17.7589852 | E7: =IF(ISBLANK(B7), "", MAX(0, (B7-B$7)/B$3)) -> 0
A8: 0.1 | B8: 523.8900634 | C8: 488.372093 | D8: 261.9450317 | E8: 244.1860465
A9: 0.165 | B9: 547.5687104 | C9: 512.05074 | D9: 273.7843552 | E9: 256.02537
A10: 0.25 | B10: 646.7230444 | C10: 611.205074 | D10: 323.3615222 | E10: 305.602537
A11: 0.5 | B11: 480.9725159 | C11: 445.4545455 | D11: 240.4862579 | E11: 222.7272727
A12: 0.75 | B12: 369.9788584 | C12: 334.4608879 | D12: 184.9894292 | E12: 167.230444
A13: 1 | B13: 369.9788584 | C13: 334.4608879 | D13: 184.9894292 | E13: 167.230444
A14: 1.5 | B14: 220.5073996 | C14: 184.9894292 | D14: 110.2536998 | E14: 92.49471459
A15: 2 | B15: 164.2706131 | C15: 128.7526427 | D15: 82.13530655 | E15: 64.37632135
A16: 3 | B16: 68.07610994 | C16: 32.55813953 | D16: 34.03805497 | E16: 16.27906977
A17: 4 | B17: 42.91754757 | C17: 7.399577167 | D17: 21.45877378 | E17: 3.699788584
A18: 5 | B18: 66.5961945 | C18: 31.0782241 | D18: 33.29809725 | E18: 15.53911205
A19: 7 | B19: 59.19661734 | C19: 23.67864693 | D19: 29.59830867 | E19: 11.83932347

Sheet EB
A1: Geppert/Leyendecker (1975) | F1: Keye (1975) | K1: Shaw (1975a) | P1: Shaw (1975b) 0.5 mg | U1: Shaw (1975b) 1 mg | Z1: Shaw (1975b) 2.5 mg | AE1: Leyendecker (1976) | AJ1: Canales (1978) | AO1: Shaw (1978) | AT1: Travaglini (1978) | AY1: Travaglini (1979) | BD1: Oriowo (1980) | BI1: Canales (1981) | BN1: White (1981) | BS1: Schweikert (1982) | BX1: Braun (1983) | CC1: Kemeter (1984) | CH1: Välimäki (1984) | CM1: Goodman (1985) | CR1: Aisaka (1986) | CW1: Cano (1986) | DB1: Messinis (1987) | DG1: Sumioki (1987) | DL1: Bider (1989) | DQ1: Vizziello (1993) | DV1: Eriksson (2006)
A2: n | B2: 3 | F2: n | G2: 10 | K2: n | L2: 10 | P2: n | Q2: 5 | U2: n | V2: 5 | Z2: n | AA2: 5 | AE2: n | AF2: 3 | AJ2: n | AK2: 22 | AO2: n | AP2: 6 | AT2: n | AU2: 19 | AY2: n | AZ2: 18 | BD2: n | BE2: 10 | BI2: n | BJ2: 14 | BN2: n | BO2: 19 | BS2: n | BT2: 2 | BX2: n | BY2: 10 | CC2: n | CD2: 22 | CH2: n | CI2: 7 | CM2: n | CN2: 10 | CR2: n | CS2: 18 | CW2: n | CX2: 27 | DB2: n | DC2: 5 | DG2: n | DH2: 11 | DL2: n | DM2: 20 | DQ2: n | DR2: 49 | DV2: n | DW2: 25
A3: Dose | B3: 27.6 | F3: Dose | G3: 0.15 | K3: Dose | L3: 1 | P3: Dose | Q3: 0.5 | U3: Dose | V3: 1 | Z3: Dose | AA3: 2.5 | AE3: Dose | AF3: 3 | AJ3: Dose | AK3: 1 | AO3: Dose | AP3: 2.5 | AT3: Dose | AU3: 1 | AY3: Dose | AZ3: 1 | BD3: Dose | BE3: 5 | BI3: Dose | BJ3: 3 | BN3: Dose | BO3: 1 | BS3: Dose | BT3: 5 | BX3: Dose | BY3: 5 | CC3: Dose | CD3: 1 | CH3: Dose | CI3: 5 | CM3: Dose | CN3: 2 | CR3: Dose | CS3: 5 | CW3: Dose | CX3: 2 | DB3: Dose | DC3: 10 | DG3: Dose | DH3: 1 | DL3: Dose | DM3: 2 | DQ3: Dose | DR3: 2.5 | DV3: Dose | DW3: 2.5
A4: Dose units | B4: mg | F4: Dose units | G4: mg | K4: Dose units | L4: mg | P4: Dose units | Q4: mg | U4: Dose units | V4: mg | Z4: Dose units | AA4: mg | AE4: Dose units | AF4: mg | AJ4: Dose units | AK4: mg | AO4: Dose units | AP4: mg | AT4: Dose units | AU4: mg | AY4: Dose units | AZ4: mg | BD4: Dose units | BE4: mg | BI4: Dose units | BJ4: mg | BN4: Dose units | BO4: mg | BS4: Dose units | BT4: mg | BX4: Dose units | BY4: mg | CC4: Dose units | CD4: mg | CH4: Dose units | CI4: mg | CM4: Dose units | CN4: mg | CR4: Dose units | CS4: mg | CW4: Dose units | CX4: mg | DB4: Dose units | DC4: mg | DG4: Dose units | DH4: mg | DL4: Dose units | DM4: mg | DQ4: Dose units | DR4: mg | DV4: Dose units | DW4: mg
A5: Concentrations | F5: Concentrations | K5: Concentrations | P5: Concentrations | U5: Concentrations | Z5: Concentrations | AE5: Concentrations | AJ5: Concentrations | AO5: Concentrations | AT5: Concentrations | AY5: Concentrations | BD5: Concentrations | BI5: Concentrations | BN5: Concentrations | BS5: Concentrations | BX5: Concentrations | CC5: Concentrations | CH5: Concentrations | CM5: Concentrations | CR5: Concentrations | CW5: Concentrations | DB5: Concentrations | DG5: Concentrations | DL5: Concentrations | DQ5: Concentrations | DV5: Concentrations
A6: Time | B6: Original | C6: Baseline-adjusted | D6: Dose-normalized | E6: Both | F6: Time | G6: Original | H6: Baseline-adjusted | I6: Dose-normalized | J6: Both | K6: Time | L6: Original | M6: Baseline-adjusted | N6: Dose-normalized | O6: Both | P6: Time | Q6: Original | R6: Baseline-adjusted | S6: Dose-normalized | T6: Both | U6: Time | V6: Original | W6: Baseline-adjusted | X6: Dose-normalized | Y6: Both | Z6: Time | AA6: Original | AB6: Baseline-adjusted | AC6: Dose-normalized | AD6: Both | AE6: Time | AF6: Original | AG6: Baseline-adjusted | AH6: Dose-normalized | AI6: Both | AJ6: Time | AK6: Original | AL6: Baseline-adjusted | AM6: Dose-normalized | AN6: Both | AO6: Time | AP6: Original | AQ6: Baseline-adjusted | AR6: Dose-normalized | AS6: Both | AT6: Time | AU6: Original | AV6: Baseline-adjusted | AW6: Dose-normalized | AX6: Both | AY6: Time | AZ6: Original | BA6: Baseline-adjusted | BB6: Dose-normalized | BC6: Both | BD6: Time | BE6: Original | BF6: Baseline-adjusted | BG6: Dose-normalized | BH6: Both | BI6: Time | BJ6: Original | BK6: Baseline-adjusted | BL6: Dose-normalized | BM6: Both | BN6: Time | BO6: Original | BP6: Baseline-adjusted | BQ6: Dose-normalized | BR6: Both | BS6: Time | BT6: Original | BU6: Baseline-adjusted | BV6: Dose-normalized | BW6: Both | BX6: Time | BY6: Original | BZ6: Baseline-adjusted | CA6: Dose-normalized | CB6: Both | CC6: Time | CD6: Original | CE6: Baseline-adjusted | CF6: Dose-normalized | CG6: Both | CH6: Time | CI6: Original | CJ6: Baseline-adjusted | CK6: Dose-normalized | CL6: Both | CM6: Time | CN6: Original | CO6: Baseline-adjusted | CP6: Dose-normalized | CQ6: Both | CR6: Time | CS6: Original | CT6: Baseline-adjusted | CU6: Dose-normalized | CV6: Both | CW6: Time | CX6: Original | CY6: Baseline-adjusted | CZ6: Dose-normalized | DA6: Both | DB6: Time | DC6: Original | DD6: Baseline-adjusted | DE6: Dose-normalized | DF6: Both | DG6: Time | DH6: Original | DI6: Baseline-adjusted | DJ6: Dose-normalized | DK6: Both | DL6: Time | DM6: Original | DN6: Baseline-adjusted | DO6: Dose-normalized | DP6: Both | DQ6: Time | DR6: Original | DS6: Baseline-adjusted | DT6: Dose-normalized | DU6: Both | DV6: Time | DW6: Original | DX6: Baseline-adjusted | DY6: Dose-normalized | DZ6: Both
A7: 0 | B7: 72 | C7: =IF(ISBLANK(B7), "", MAX(0,B7-B$7)) -> 0 | D7: =IF(ISBLANK(B7), "", B7/B$3) -> 2.608695652 | E7: =IF(ISBLANK(B7), "", MAX(0, (B7-B$7)/B$3)) -> 0 | F7: 0 | G7: 0 | H7: =IF(ISBLANK(G7), "", MAX(0,G7-G$7)) -> 0 | I7: =IF(ISBLANK(G7), "", G7/G$3) -> 0 | J7: =IF(ISBLANK(G7), "", MAX(0, (G7-G$7)/G$3)) -> 0 | K7: 0 | L7: 81.22747098 | M7: =IF(ISBLANK(L7), "", MAX(0,L7-L$7)) -> 0 | N7: =IF(ISBLANK(L7), "", L7/L$3) -> 81.22747098 | O7: =IF(ISBLANK(L7), "", MAX(0, (L7-L$7)/L$3)) -> 0 | P7: 0 | Q7: 100.7899755 | R7: =IF(ISBLANK(Q7), "", MAX(0,Q7-Q$7)) -> 0 | S7: =IF(ISBLANK(Q7), "", Q7/Q$3) -> 201.579951 | T7: =IF(ISBLANK(Q7), "", MAX(0, (Q7-Q$7)/Q$3)) -> 0 | U7: 0 | V7: 113.3206211 | W7: =IF(ISBLANK(V7), "", MAX(0,V7-V$7)) -> 0 | X7: =IF(ISBLANK(V7), "", V7/V$3) -> 113.3206211 | Y7: =IF(ISBLANK(V7), "", MAX(0, (V7-V$7)/V$3)) -> 0 | Z7: 0 | AA7: 116.0446745 | AB7: =IF(ISBLANK(AA7), "", MAX(0,AA7-AA$7)) -> 0 | AC7: =IF(ISBLANK(AA7), "", AA7/AA$3) -> 46.41786979 | AD7: =IF(ISBLANK(AA7), "", MAX(0, (AA7-AA$7)/AA$3)) -> 0 | AE7: 0 | AF7: 186.6205484 | AG7: =IF(ISBLANK(AF7), "", MAX(0,AF7-AF$7)) -> 0 | AH7: =IF(ISBLANK(AF7), "", AF7/AF$3) -> 62.20684947 | AI7: =IF(ISBLANK(AF7), "", MAX(0, (AF7-AF$7)/AF$3)) -> 0 | AJ7: 0 | AK7: 107.1505569 | AL7: =IF(ISBLANK(AK7), "", MAX(0,AK7-AK$7)) -> 0 | AM7: =IF(ISBLANK(AK7), "", AK7/AK$3) -> 107.150557 | AN7: =IF(ISBLANK(AK7), "", MAX(0, (AK7-AK$7)/AK$3)) -> 0 | AO7: 0 | AP7: 91.7011589 | AQ7: =IF(ISBLANK(AP7), "", MAX(0,AP7-AP$7)) -> 0 | AR7: =IF(ISBLANK(AP7), "", AP7/AP$3) -> 36.68046356 | AS7: =IF(ISBLANK(AP7), "", MAX(0, (AP7-AP$7)/AP$3)) -> 0 | AT7: 0 | AU7: 76.5391015 | AV7: =IF(ISBLANK(AU7), "", MAX(0,AU7-AU$7)) -> 0 | AW7: =IF(ISBLANK(AU7), "", AU7/AU$3) -> 76.5391015 | AX7: =IF(ISBLANK(AU7), "", MAX(0, (AU7-AU$7)/AU$3)) -> 0 | AY7: 0 | AZ7: 58.73400115 | BA7: =IF(ISBLANK(AZ7), "", MAX(0,AZ7-AZ$7)) -> 0 | BB7: =IF(ISBLANK(AZ7), "", AZ7/AZ$3) -> 58.73400115 | BC7: =IF(ISBLANK(AZ7), "", MAX(0, (AZ7-AZ$7)/AZ$3)) -> 0 | BD7: 0 | BE7: 60.49274578 | BF7: =IF(ISBLANK(BE7), "", MAX(0,BE7-BE$7)) -> 0 | BG7: =IF(ISBLANK(BE7), "", BE7/BE$3) -> 12.09854916 | BH7: =IF(ISBLANK(BE7), "", MAX(0, (BE7-BE$7)/BE$3)) -> 0 | BI7: 0 | BJ7: 166.6335409 | BK7: =IF(ISBLANK(BJ7), "", MAX(0,BJ7-BJ$7)) -> 0 | BL7: =IF(ISBLANK(BJ7), "", BJ7/BJ$3) -> 55.54451362 | BM7: =IF(ISBLANK(BJ7), "", MAX(0, (BJ7-BJ$7)/BJ$3)) -> 0 | BN7: 0 | BO7: 142.3125 | BP7: =IF(ISBLANK(BO7), "", MAX(0,BO7-BO$7)) -> 0 | BQ7: =IF(ISBLANK(BO7), "", BO7/BO$3) -> 142.3125 | BR7: =IF(ISBLANK(BO7), "", MAX(0, (BO7-BO$7)/BO$3)) -> 0 | BS7: 0 | BT7: 68.31637278 | BU7: =IF(ISBLANK(BT7), "", MAX(0,BT7-BT$7)) -> 0 | BV7: =IF(ISBLANK(BT7), "", BT7/BT$3) -> 13.66327456 | BW7: =IF(ISBLANK(BT7), "", MAX(0, (BT7-BT$7)/BT$3)) -> 0 | BX7: 0 | BY7: 167.1530867 | BZ7: =IF(ISBLANK(BY7), "", MAX(0,BY7-BY$7)) -> 0 | CA7: =IF(ISBLANK(BY7), "", BY7/BY$3) -> 33.43061734 | CB7: =IF(ISBLANK(BY7), "", MAX(0, (BY7-BY$7)/BY$3)) -> 0 | CC7: 0 | CD7: 83.82768998 | CE7: =IF(ISBLANK(CD7), "", MAX(0,CD7-CD$7)) -> 0 | CF7: =IF(ISBLANK(CD7), "", CD7/CD$3) -> 83.82768998 | CG7: =IF(ISBLANK(CD7), "", MAX(0, (CD7-CD$7)/CD$3)) -> 0 | CH7: 0 | CI7: 26.95920588 | CJ7: =IF(ISBLANK(CI7), "", MAX(0,CI7-CI$7)) -> 0 | CK7: =IF(ISBLANK(CI7), "", CI7/CI$3) -> 5.391841176 | CL7: =IF(ISBLANK(CI7), "", MAX(0, (CI7-CI$7)/CI$3)) -> 0 | CM7: 0 | CN7: 40.08002124 | CO7: =IF(ISBLANK(CN7), "", MAX(0,CN7-CN$7)) -> 0 | CP7: =IF(ISBLANK(CN7), "", CN7/CN$3) -> 20.04001062 | CQ7: =IF(ISBLANK(CN7), "", MAX(0, (CN7-CN$7)/CN$3)) -> 0 | CR7: 0 | CS7: 145.4651871 | CT7: =IF(ISBLANK(CS7), "", MAX(0,CS7-CS$7)) -> 0 | CU7: =IF(ISBLANK(CS7), "", CS7/CS$3) -> 29.09303742 | CV7: =IF(ISBLANK(CS7), "", MAX(0, (CS7-CS$7)/CS$3)) -> 0 | CW7: 0 | CX7: 156.3449881 | CY7: =IF(ISBLANK(CX7), "", MAX(0,CX7-CX$7)) -> 0 | CZ7: =IF(ISBLANK(CX7), "", CX7/CX$3) -> 78.17249405 | DA7: =IF(ISBLANK(CX7), "", MAX(0, (CX7-CX$7)/CX$3)) -> 0 | DB7: 0 | DC7: 0 | DD7: =IF(ISBLANK(DC7), "", MAX(0,DC7-DC$7)) -> 0 | DE7: =IF(ISBLANK(DC7), "", DC7/DC$3) -> 0 | DF7: =IF(ISBLANK(DC7), "", MAX(0, (DC7-DC$7)/DC$3)) -> 0 | DG7: 0 | DH7: 99.54794034 | DI7: =IF(ISBLANK(DH7), "", MAX(0,DH7-DH$7)) -> 0 | DJ7: =IF(ISBLANK(DH7), "", DH7/DH$3) -> 99.54794034 | DK7: =IF(ISBLANK(DH7), "", MAX(0, (DH7-DH$7)/DH$3)) -> 0 | DL7: 0 | DM7: 64.8870377 | DN7: =IF(ISBLANK(DM7), "", MAX(0,DM7-DM$7)) -> 0 | DO7: =IF(ISBLANK(DM7), "", DM7/DM$3) -> 32.44351885 | DP7: =IF(ISBLANK(DM7), "", MAX(0, (DM7-DM$7)/DM$3)) -> 0 | DQ7: 0 | DR7: 34.42857143 | DS7: =IF(ISBLANK(DR7), "", MAX(0,DR7-DR$7)) -> 0 | DT7: =IF(ISBLANK(DR7), "", DR7/DR$3) -> 13.77142857 | DU7: =IF(ISBLANK(DR7), "", MAX(0, (DR7-DR$7)/DR$3)) -> 0 | DV7: 0 | DW7: 31.34664381 | DX7: =IF(ISBLANK(DW7), "", MAX(0,DW7-DW$7)) -> 0 | DY7: =IF(ISBLANK(DW7), "", DW7/DW$3) -> 12.53865752 | DZ7: =IF(ISBLANK(DW7), "", MAX(0, (DW7-DW$7)/DW$3)) -> 0
A8: 0.5 | B8: 2015 | C8: 1943 | D8: 73.00724638 | E8: 70.39855072 | F8: 0.08333 | G8: 16.30828262 | H8: 16.30828262 | I8: 108.7218841 | J8: 108.7218841 | K8: 0.333 | L8: 760.0715311 | M8: 678.8440601 | N8: 760.0715311 | O8: 678.8440601 | P8: 0.333 | Q8: 326.886407 | R8: 226.0964315 | S8: 653.7728139 | T8: 452.192863 | U8: 0.333 | V8: 742.8493598 | W8: 629.5287388 | X8: 742.8493598 | Y8: 629.5287388 | Z8: 0.333 | AA8: 676.9272678 | AB8: 560.8825933 | AC8: 270.7709071 | AD8: 224.3530373 | AE8: 0.125 | AF8: 888.7055323 | AG8: 702.0849839 | AH8: 296.2351774 | AI8: 234.028328 | AJ8: 1 | AK8: 195.0053899 | AL8: 87.85483292 | AM8: 195.0053899 | AN8: 87.85483292 | AO8: 0.333 | AP8: 715.0997915 | AQ8: 623.3986326 | AR8: 286.0399166 | AS8: 249.359453 | AT8: 1 | AU8: 366.0565724 | AV8: 289.5174709 | AW8: 366.0565724 | AX8: 289.5174709 | AY8: 1 | AZ8: 377.0713244 | BA8: 318.3373233 | BB8: 377.0713244 | BC8: 318.3373233 | BD8: 1 | BE8: 339.344922 | BF8: 278.8521763 | BG8: 67.86898441 | BH8: 55.77043525 | BI8: 1 | BJ8: 515.9002635 | BK8: 349.2667226 | BL8: 171.9667545 | BM8: 116.4222409 | BN8: 0.5 | BO8: 370.4712612 | BP8: 228.1587612 | BQ8: 370.4712612 | BR8: 228.1587612 | BS8: 1 | BT8: 725.0024049 | BU8: 656.6860321 | BV8: 145.000481 | BW8: 131.3372064 | BX8: 0.5 | BY8: 1324.472611 | BZ8: 1157.319524 | CA8: 264.8945221 | CB8: 231.4639048 | CC8: 1 | CD8: 200.4498612 | CE8: 116.6221712 | CF8: 200.4498612 | CG8: 116.6221712 | CH8: 1 | CI8: 1114.824602 | CJ8: 1087.865396 | CK8: 222.9649205 | CL8: 217.5730793 | CM8: 1 | CN8: 422.4017823 | CO8: 382.321761 | CP8: 211.2008911 | CQ8: 191.1608805 | CR8: 1 | CS8: 2984.933298 | CT8: 2839.468111 | CU8: 596.9866597 | CV8: 567.8936223 | CW8: 0.333 | CX8: 424.4489737 | CY8: 268.1039856 | CZ8: 212.2244868 | DA8: 134.0519928 | DB8: 0.25 | DC8: 2637.369463 | DD8: 2637.369463 | DE8: 263.7369463 | DF8: 263.7369463 | DG8: 1 | DH8: 322.154669 | DI8: 222.6067287 | DJ8: 322.154669 | DK8: 222.6067287 | DL8: 1 | DM8: 293.32643 | DN8: 228.4393923 | DO8: 146.663215 | DP8: 114.2196961 | DQ8: 1 | DR8: 477.2857143 | DS8: 442.8571429 | DT8: 190.9142857 | DU8: 177.1428571 | DV8: 0.017 | DW8: 195.2405179 | DX8: 163.8938741 | DY8: 78.09620716 | DZ8: 65.55754963
A9: 1 | B9: 2147 | C9: 2075 | D9: 77.78985507 | E9: 75.18115942 | F9: 0.1667 | G9: 46.6431929 | H9: 46.6431929 | I9: 310.9546193 | J9: 310.9546193 | K9: 1 | L9: 510.3667282 | M9: 429.1392572 | N9: 510.3667282 | O9: 429.1392572 | P9: 1 | Q9: 313.5385454 | R9: 212.7485699 | S9: 627.0770907 | T9: 425.4971397 | U9: 1 | V9: 554.0724598 | W9: 440.7518387 | X9: 554.0724598 | Y9: 440.7518387 | Z9: 1 | AA9: 882.5932988 | AB9: 766.5486244 | AC9: 353.0373195 | AD9: 306.6194497 | AE9: 0.271 | AF9: 978.2535603 | AG9: 791.6330119 | AH9: 326.0845201 | AI9: 263.8776706 | AJ9: 2 | AK9: 140.1365433 | AL9: 32.98598635 | AM9: 140.1365433 | AN9: 32.98598635 | AO9: 1 | AP9: 373.1817888 | AQ9: 281.4806299 | AR9: 149.2727155 | AS9: 112.592252 | AT9: 2 | AU9: 213.6439268 | AV9: 137.1048253 | AW9: 213.6439268 | AX9: 137.1048253 | AY9: 2 | AZ9: 232.2415553 | BA9: 173.5075542 | BB9: 232.2415553 | BC9: 173.5075542 | BD9: 2 | BE9: 747.1473503 | BF9: 686.6546045 | BG9: 149.4294701 | BH9: 137.3309209 | BI9: 2 | BJ9: 313.6249927 | BK9: 146.9914518 | BL9: 104.5416642 | BM9: 48.9971506 | BN9: 1 | BO9: 230.7273223 | BP9: 88.41482226 | BQ9: 230.7273223 | BR9: 88.41482226 | BS9: 2 | BT9: 1235.535241 | BU9: 1167.218868 | BV9: 247.1070482 | BW9: 233.4437737 | BX9: 1 | BY9: 1672.574722 | BZ9: 1505.421636 | CA9: 334.5149445 | CB9: 301.0843271 | CC9: 3 | CD9: 188.1794146 | CE9: 104.3517246 | CF9: 188.1794146 | CG9: 104.3517246 | CH9: 2 | CI9: 618.3518021 | CJ9: 591.3925962 | CK9: 123.6703604 | CL9: 118.2785192 | CM9: 2 | CN9: 188.9486715 | CO9: 148.8686503 | CP9: 94.47433577 | CQ9: 74.43432515 | CR9: 2 | CS9: 1875.230969 | CT9: 1729.765782 | CU9: 375.0461937 | CV9: 345.9531563 | CW9: 0.667 | CX9: 474.0611974 | CY9: 317.7162093 | CZ9: 237.0305987 | DA9: 158.8581046 | DB9: 0.5 | DC9: 3827.206741 | DD9: 3827.206741 | DE9: 382.7206741 | DF9: 382.7206741 | DG9: 2 | DH9: 255.2623828 | DI9: 155.7144425 | DJ9: 255.2623828 | DK9: 155.7144425 | DL9: 2 | DM9: 264.2263343 | DN9: 199.3392966 | DO9: 132.1131672 | DP9: 99.66964832 | DQ9: 2 | DR9: 365.4285714 | DS9: 331 | DT9: 146.1714286 | DU9: 132.4 | DV9: 0.25 | DW9: 666.1412181 | DX9: 634.7945743 | DY9: 266.4564873 | DZ9: 253.9178297
A10: 1.5 | B10: 1679 | C10: 1607 | D10: 60.83333333 | E10: 58.22463768 | F10: 0.25 | G10: 45.76233506 | H10: 45.76233506 | I10: 305.0822337 | J10: 305.0822337 | K10: 1.333 | L10: 377.544838 | M10: 296.317367 | N10: 377.544838 | O10: 296.317367 | P10: 1.5 | Q10: 228.8204849 | R10: 128.0305094 | S10: 457.6409698 | T10: 256.0610188 | U10: 1.5 | V10: 394.9877418 | W10: 281.6671207 | X10: 394.9877418 | Y10: 281.6671207 | Z10: 1.5 | AA10: 371.5608826 | AB10: 255.5162081 | AC10: 148.624353 | AD10: 102.2064832 | AE10: 0.375 | AF10: 1110.18531 | AG10: 923.564762 | AH10: 370.0617701 | AI10: 307.8549207 | AJ10: 3 | AK10: 126.3384837 | AL10: 19.1879267 | AM10: 126.3384837 | AN10: 19.1879267 | AO10: 1.333 | AP10: 281.333808 | AQ10: 189.6326491 | AR10: 112.5335232 | AS10: 75.85305963 | AT10: 3 | AU10: 134.4425957 | AV10: 57.90349418 | AW10: 134.4425957 | AX10: 57.90349418 | AY10: 3 | AZ10: 140.3913282 | BA10: 81.65732704 | BB10: 140.3913282 | BC10: 81.65732704 | BD10: 3 | BE10: 390.5373871 | BF10: 330.0446413 | BG10: 78.10747743 | BH10: 66.00892827 | BI10: 3 | BJ10: 258.9299901 | BK10: 92.29644924 | BL10: 86.3099967 | BM10: 30.76548308 | BN10: 2 | BO10: 135.3854536 | BP10: 0 | BQ10: 135.3854536 | BR10: 0 | BS10: 3 | BT10: 424.5619456 | BU10: 356.2455728 | BV10: 84.91238912 | BW10: 71.24911456 | BX10: 1.5 | BY10: 1508.02747 | BZ10: 1340.874384 | CA10: 301.6054941 | CB10: 268.1748767 | CC10: 5 | CD10: 95.25189466 | CE10: 11.42420468 | CF10: 95.25189466 | CG10: 11.42420468 | CH10: 3 | CI10: 415.1214349 | CJ10: 388.162229 | CK10: 83.02428697 | CL10: 77.6324458 | CM10: 3 | CN10: 116.8566853 | CO10: 76.77666406 | CP10: 58.42834265 | CQ10: 38.38833203 | CR10: 3 | CS10: 617.7268257 | CT10: 472.2616386 | CU10: 123.5453651 | CV10: 94.45232772 | CW10: 1 | CX10: 438.9143841 | CY10: 282.569396 | CZ10: 219.4571921 | DA10: 141.284698 | DB10: 0.75 | DC10: 4124.533924 | DD10: 4124.533924 | DE10: 412.4533924 | DF10: 412.4533924 | DG10: 3 | DH10: 154.1436556 | DI10: 54.59571525 | DJ10: 154.1436556 | DK10: 54.59571525 | DL10: 3 | DM10: 184.9683672 | DN10: 120.0813295 | DO10: 92.4841836 | DP10: 60.04066475 | DV10: 1 | DW10: 548.6664156 | DX10: 517.3197718 | DY10: 219.4665663 | DZ10: 206.9279087
A11: 2 | B11: 1659 | C11: 1587 | D11: 60.10869565 | E11: 57.5 | F11: 0.333 | G11: 28.01473384 | H11: 28.01473384 | I11: 186.7648922 | J11: 186.7648922 | K11: 2 | L11: 242.9016008 | M11: 161.6741299 | N11: 242.9016008 | O11: 161.6741299 | P11: 2 | Q11: 117.1342958 | R11: 16.34432035 | S11: 234.2685917 | T11: 32.6886407 | U11: 2 | V11: 209.7521111 | W11: 96.43149006 | X11: 209.7521111 | Y11: 96.43149006 | Z11: 2 | AA11: 292.0185236 | AB11: 175.9738491 | AC11: 116.8074094 | AD11: 70.38953963 | AE11: 0.5 | AF11: 1133.999343 | AG11: 947.3787946 | AH11: 377.999781 | AI11: 315.7929315 | AO11: 1.54 | AP11: 260.2676436 | AQ11: 168.5664847 | AR11: 104.1070575 | AS11: 67.4265939 | AT11: 4 | AU11: 89.18469218 | AV11: 12.64559068 | AW11: 89.18469218 | AX11: 12.64559068 | AY11: 4 | AZ11: 91.03930668 | BA11: 32.30530553 | BB11: 91.03930668 | BC11: 32.30530553 | BD11: 4 | BE11: 170.4815854 | BF11: 109.9888397 | BG11: 34.09631709 | BH11: 21.99776793 | BI11: 4 | BJ11: 249.0583234 | BK11: 82.4247825 | BL11: 83.01944112 | BM11: 27.4749275 | BN11: 3 | BO11: 66.73930809 | BP11: 0 | BQ11: 66.73930809 | BR11: 0 | BS11: 4 | BT11: 317.4326849 | BU11: 249.1163122 | BV11: 63.48653699 | BW11: 49.82326243 | BX11: 2 | BY11: 815.9386908 | BZ11: 648.7856041 | CA11: 163.1877382 | CB11: 129.7571208 | CM11: 4 | CN11: 66.10600905 | CO11: 26.02598782 | CP11: 33.05300453 | CQ11: 13.01299391 | CR11: 4 | CS11: 330.2628251 | CT11: 184.797638 | CU11: 66.05256501 | CV11: 36.95952759 | CW11: 1.333 | CX11: 394.1947955 | CY11: 237.8498074 | CZ11: 197.0973977 | DA11: 118.9249037 | DB11: 1 | DC11: 3372.028114 | DD11: 3372.028114 | DE11: 337.2028114 | DF11: 337.2028114 | DG11: 4 | DH11: 132.6125969 | DI11: 33.06465659 | DJ11: 132.6125969 | DK11: 33.06465659 | DL11: 4 | DM11: 153.4664784 | DN11: 88.57944075 | DO11: 76.73323922 | DP11: 44.28972037 | DV11: 1.333 | DW11: 544.0595606 | DX11: 512.7129168 | DY11: 217.6238243 | DZ11: 205.0851667
A12: 3 | B12: 1353 | C12: 1281 | D12: 49.02173913 | E12: 46.41304348 | F12: 0.41667 | G12: 6.65804759 | H12: 6.65804759 | I12: 44.38698394 | J12: 44.38698394 | K12: 2.333 | L12: 200.1914534 | M12: 118.9639824 | N12: 200.1914534 | O12: 118.9639824 | AE12: 1 | AF12: 1124.770536 | AG12: 938.1499874 | AH12: 374.9235119 | AI12: 312.7166625 | AO12: 2 | AP12: 227.0573823 | AQ12: 135.3562234 | AR12: 90.82295292 | AS12: 54.14248935 | BD12: 5 | BE12: 89.48730089 | BF12: 28.99455511 | BG12: 17.89746018 | BH12: 5.798911022 | BS12: 5 | BT12: 86.41747145 | BU12: 18.10109867 | BV12: 17.28349429 | BW12: 3.620219734 | BX12: 2.5 | BY12: 919.3586275 | BZ12: 752.2055408 | CA12: 183.8717255 | CB12: 150.4411082 | CM12: 5 | CN12: 51.271196 | CO12: 11.19117476 | CP12: 25.635598 | CQ12: 5.595587381 | CW12: 1.667 | CX12: 335.1644335 | CY12: 178.8194454 | CZ12: 167.5822167 | DA12: 89.40972268 | DB12: 1.25 | DC12: 3262.590013 | DD12: 3262.590013 | DE12: 326.2590013 | DF12: 326.2590013 | DG12: 5 | DH12: 99.12331153 | DI12: 0 | DJ12: 99.12331153 | DK12: 0 | DV12: 2 | DW12: 224.0834362 | DX12: 192.7367923 | DY12: 89.63337446 | DZ12: 77.09471694
A13: 4 | B13: 1105 | C13: 1033 | D13: 40.03623188 | E13: 37.42753623 | F13: 0.5 | G13: 0 | H13: 0 | I13: 0 | J13: 0 | K13: 3 | L13: 149.8452376 | M13: 68.61776664 | N13: 149.8452376 | O13: 68.61776664 | AE13: 1.04 | AF13: 1113.454812 | AG13: 926.8342641 | AH13: 371.1516042 | AI13: 308.9447547 | AO13: 2.333 | AP13: 105.3779038 | AQ13: 13.67674489 | AR13: 42.15116152 | AS13: 5.470697955 | BD13: 6 | BE13: 49.37705029 | BF13: 0 | BG13: 9.875410058 | BH13: 0 | BS13: 6 | BT13: 51.91414688 | BU13: 0 | BV13: 10.38282938 | BW13: 0 | BX13: 3 | BY13: 527.1601152 | BZ13: 360.0070286 | CA13: 105.432023 | CB13: 72.00140571 | CW13: 2 | CX13: 308.3711817 | CY13: 152.0261936 | CZ13: 154.1855909 | DA13: 76.01309682 | DB13: 1.5 | DC13: 2642.822916 | DD13: 2642.822916 | DE13: 264.2822916 | DF13: 264.2822916 | DV13: 2.333 | DW13: 220.5281459 | DX13: 189.1815021 | DY13: 88.21125835 | DZ13: 75.67260083
A14: 5 | B14: 1051 | C14: 979 | D14: 38.07971014 | E14: 35.47101449 | AE14: 1.125 | AF14: 1013.356264 | AG14: 826.7357153 | AH14: 337.7854212 | AI14: 275.5785718 | AO14: 3 | AP14: 73.20468873 | AQ14: 0 | AR14: 29.28187549 | AS14: 0 | BD14: 7 | BE14: 32.19757178 | BF14: 0 | BG14: 6.439514356 | BH14: 0 | BS14: 7 | BT14: 31.4448872 | BU14: 0 | BV14: 6.288977441 | BW14: 0 | BX14: 3.5 | BY14: 464.0070469 | BZ14: 296.8539602 | CA14: 92.80140938 | CB14: 59.37079204 | CW14: 2.333 | CX14: 242.1686018 | CY14: 85.82361372 | CZ14: 121.0843009 | DA14: 42.91180686 | DB14: 1.75 | DC14: 1630.488216 | DD14: 1630.488216 | DE14: 163.0488216 | DF14: 163.0488216 | DV14: 3 | DW14: 106.4584101 | DX14: 75.1117663 | DY14: 42.58336404 | DZ14: 30.04470652
A15: 6 | B15: 835 | C15: 763 | D15: 30.25362319 | E15: 27.64492754 | AE15: 1.25 | AF15: 1050.673417 | AG15: 864.0528685 | AH15: 350.2244723 | AI15: 288.0176228 | BD15: 8 | BE15: 23.93520241 | BF15: 0 | BG15: 4.787040482 | BH15: 0 | BS15: 8 | BT15: 17.98099991 | BU15: 0 | BV15: 3.596199982 | BW15: 0 | BX15: 4 | BY15: 400.8495926 | BZ15: 233.6965059 | CA15: 80.16991852 | CB15: 46.73930118 | CW15: 2.667 | CX15: 202.2459204 | CY15: 45.90093229 | CZ15: 101.1229602 | DA15: 22.95046615 | DB15: 2 | DC15: 1411.551291 | DD15: 1411.551291 | DE15: 141.1551291 | DF15: 141.1551291 | DV15: 4 | DW15: 58.58717772 | DX15: 27.24053391 | DY15: 23.43487109 | DZ15: 10.89621356
A16: 7 | B16: 856 | C16: 784 | D16: 31.01449275 | E16: 28.4057971 | AE16: 1.375 | AF16: 981.7588066 | AG16: 795.1382582 | AH16: 327.2529355 | AI16: 265.0460861 | BD16: 9 | BE16: 20.80658798 | BF16: 0 | BG16: 4.161317596 | BH16: 0 | BX16: 4.5 | BY16: 318.7359796 | BZ16: 151.5828929 | CA16: 63.74719592 | CB16: 30.31657858 | CW16: 3 | CX16: 174.2587016 | CY16: 17.91371353 | CZ16: 87.12935081 | DA16: 8.956856763 | DB16: 2.25 | DC16: 936.2869056 | DD16: 936.2869056 | DE16: 93.62869056 | DF16: 93.62869056 | DV16: 5 | DW16: 45.31743234 | DX16: 13.97078853 | DY16: 18.12697294 | DZ16: 5.588315412
A17: 8 | B17: 551 | C17: 479 | D17: 19.96376812 | E17: 17.35507246 | AE17: 1.5 | AF17: 939.8156557 | AG17: 753.1951073 | AH17: 313.2718852 | AI17: 251.0650358 | BD17: 10 | BE17: 21.49108864 | BF17: 0 | BG17: 4.298217728 | BH17: 0 | BX17: 5 | BY17: 289.2671218 | BZ17: 122.1140351 | CA17: 57.85342436 | CB17: 24.42280702 | DB17: 2.5 | DC17: 790.039401 | DD17: 790.039401 | DE17: 79.0039401 | DF17: 79.0039401 | DV17: 6 | DW17: 42.76363228 | DX17: 11.41698847 | DY17: 17.10545291 | DZ17: 4.566795388
A18: 9 | B18: 625 | C18: 553 | D18: 22.64492754 | E18: 20.03623188 | AE18: 1.625 | AF18: 1040.969257 | AG18: 854.3487082 | AH18: 346.9897522 | AI18: 284.7829027 | BD18: 11 | BE18: 22.2053502 | BF18: 0 | BG18: 4.44107004 | BH18: 0 | BX18: 5.5 | BY18: 324.0044043 | BZ18: 156.8513176 | CA18: 64.80088086 | CB18: 31.37026352 | DB18: 2.75 | DC18: 496.2705321 | DD18: 496.2705321 | DE18: 49.62705321 | DF18: 49.62705321
AE19: 1.875 | AF19: 850.8511913 | AG19: 664.2306429 | AH19: 283.6170638 | AI19: 221.4102143 | DB19: 3 | DC19: 371.3535487 | DD19: 371.3535487 | DE19: 37.13535487 | DF19: 37.13535487
AE20: 2 | AF20: 758.7138413 | AG20: 572.0932929 | AH20: 252.9046138 | AI20: 190.6977643 | DB20: 3.25 | DC20: 241.572751 | DD20: 241.572751 | DE20: 24.1572751 | DF20: 24.1572751
AE21: 2.125 | AF21: 726.4439335 | AG21: 539.8233851 | AH21: 242.1479778 | AI21: 179.9411284 | DB21: 3.5 | DC21: 310.0758523 | DD21: 310.0758523 | DE21: 31.00758523 | DF21: 31.00758523
AE22: 2.25 | AF22: 574.4043593 | AG22: 387.7838109 | AH22: 191.4681198 | AI22: 129.2612703 | DB22: 3.75 | DC22: 114.8374796 | DD22: 114.8374796 | DE22: 11.48374796 | DF22: 11.48374796
AE23: 2.375 | AF23: 484.2109331 | AG23: 297.5903847 | AH23: 161.4036444 | AI23: 99.19679491 | DB23: 4 | DC23: 201.0372052 | DD23: 201.0372052 | DE23: 20.10372052 | DF23: 20.10372052
DB24: 4.25 | DC24: 92.24267001 | DD24: 92.24267001 | DE24: 9.224267001 | DF24: 9.224267001
DB25: 4.5 | DC25: 42.57974668 | DD25: 42.57974668 | DE25: 4.257974668 | DF25: 4.257974668

Sheet EDP
A1: Presl (1976)
A2: n | B2: 15
A3: Dose | B3: 2
A4: Dose units | B4: mg
A5: Concentrations
A6: Time | B6: Original | C6: Baseline-adjusted | D6: Dose-normalized | E6: Both
A7: 0 | B7: 38.49517553 | C7: =IF(ISBLANK(B7), "", MAX(0,B7-B$7)) -> 0 | D7: =IF(ISBLANK(B7), "", B7/B$3) -> 19.24758776 | E7: =IF(ISBLANK(B7), "", MAX(0, (B7-B$7)/B$3)) -> 0
A8: 1 | B8: 202.6852802 | C8: 164.1901047 | D8: 101.3426401 | E8: 82.09505235
A9: 1.5 | B9: 216.7446794 | C9: 178.2495039 | D9: 108.3723397 | E9: 89.12475193
A10: 2 | B10: 178.3480463 | C10: 139.8528707 | D10: 89.17402313 | E10: 69.92643537
A11: 3 | B11: 120.8896188 | C11: 82.3944433 | D11: 60.44480942 | E11: 41.19722165
A12: 4 | B12: 91.9345788 | C12: 53.43940327 | D12: 45.9672894 | E12: 26.71970164

Sheet EV
A1: Somerville (1971–1975) | F1: Geppert/Leyendecker (1975) | K1: Vermeulen (1975a) | P1: Vermeulen (1975b) | U1: Oriowo (1980) | Z1: Rauramo (1980) | AE1: Blackwell (1982) | AJ1: Düsterberg & Wendt (1983) | AO1: Aedo (1985) | AT1: Düsterberg (1985) | AY1: Reimann (1987) | BD1: Sang (1987) 5 mg | BI1: Sang (1987) 2.5 mg | BN1: Sherwin (1987) | BS1: Goh (1988) | BX1: Goh (1990) | CC1: Garza-Flores (1994a) [Bangkok, Thailand] | CH1: Garza-Flores (1994b) [Hangzhou, China] / Sang et al. (1987) | CM1: Garza-Flores (1994c) [London, United Kingdom] | CR1: Jilma (1994) | CW1: Goh (1998) | DB1: Göretzlehner (2002) | DG1: Kerdelhué (2006) | DL1: Valle Alvarez (2011) | DQ1: Schug (2012)
A2: n | B2: 12 | F2: n | G2: 3 | K2: n | L2: 4 | P2: n | Q2: 2 | U2: n | V2: 9 | Z2: n | AA2: 6 | AE2: n | AF2: 10 | AJ2: n | AK2: 3 | AO2: n | AP2: 7 | AT2: n | AU2: 2 | AY2: n | AZ2: 7 | BD2: n | BE2: 8 | BI2: n | BJ2: 8 | BN2: n | BO2: 20 | BS2: n | BT2: 54 | BX2: n | BY2: 12 | CC2: n | CD2: 8 | CH2: n | CI2: 8 | CM2: n | CN2: 5 | CR2: n | CS2: 9 | CW2: n | CX2: 5 | DB2: n | DC2: 17 | DG2: n | DH2: 10 | DL2: n | DM2: 32 | DQ2: n | DR2: 48
A3: Dose | B3: 9.44 | F3: Dose | G3: 26.2 | K3: Dose | L3: 10 | P3: Dose | Q3: 4 | U3: Dose | V3: 5 | Z3: Dose | AA3: 10 | AE3: Dose | AF3: 20 | AJ3: Dose | AK3: 4 | AO3: Dose | AP3: 5 | AT3: Dose | AU3: 4 | AY3: Dose | AZ3: 10 | BD3: Dose | BE3: 5 | BI3: Dose | BJ3: 2.5 | BN3: Dose | BO3: 10 | BS3: Dose | BT3: 10 | BX3: Dose | BY3: 10 | CC3: Dose | CD3: 5 | CH3: Dose | CI3: 5 | CM3: Dose | CN3: 5 | CR3: Dose | CS3: 10 | CW3: Dose | CX3: 10 | DB3: Dose | DC3: 5 | DG3: Dose | DH3: 2 | DL3: Dose | DM3: 5 | DQ3: Dose | DR3: 10
A4: Dose units | B4: mg | F4: Dose units | G4: mg | K4: Dose units | L4: mg | P4: Dose units | Q4: mg | U4: Dose units | V4: mg | Z4: Dose units | AA4: mg | AE4: Dose units | AF4: mg | AJ4: Dose units | AK4: mg | AO4: Dose units | AP4: mg | AT4: Dose units | AU4: mg | AY4: Dose units | AZ4: mg | BD4: Dose units | BE4: mg | BI4: Dose units | BJ4: mg | BN4: Dose units | BO4: mg | BS4: Dose units | BT4: mg | BX4: Dose units | BY4: mg | CC4: Dose units | CD4: mg | CH4: Dose units | CI4: mg | CM4: Dose units | CN4: mg | CR4: Dose units | CS4: mg | CW4: Dose units | CX4: mg | DB4: Dose units | DC4: mg | DG4: Dose units | DH4: mg | DL4: Dose units | DM4: mg | DQ4: Dose units | DR4: mg
A5: Concentrations | F5: Concentrations | K5: Concentrations | P5: Concentrations | U5: Concentrations | Z5: Concentrations | AE5: Concentrations | AJ5: Concentrations | AO5: Concentrations | AT5: Concentrations | AY5: Concentrations | BD5: Concentrations | BI5: Concentrations | BN5: Concentrations | BS5: Concentrations | BX5: Concentrations | CC5: Concentrations | CH5: Concentrations | CM5: Concentrations | CR5: Concentrations | CW5: Concentrations | DB5: Concentrations | DG5: Concentrations | DL5: Concentrations | DQ5: Concentrations
A6: Time | B6: Original | C6: Baseline-adjusted | D6: Dose-normalized | E6: Both | F6: Time | G6: Original | H6: Baseline-adjusted | I6: Dose-normalized | J6: Both | K6: Time | L6: Original | M6: Baseline-adjusted | N6: Dose-normalized | O6: Both | P6: Time | Q6: Original | R6: Baseline-adjusted | S6: Dose-normalized | T6: Both | U6: Time | V6: Original | W6: Baseline-adjusted | X6: Dose-normalized | Y6: Both | Z6: Time | AA6: Original | AB6: Baseline-adjusted | AC6: Dose-normalized | AD6: Both | AE6: Time | AF6: Original | AG6: Baseline-adjusted | AH6: Dose-normalized | AI6: Both | AJ6: Time | AK6: Original | AL6: Baseline-adjusted | AM6: Dose-normalized | AN6: Both | AO6: Time | AP6: Original | AQ6: Baseline-adjusted | AR6: Dose-normalized | AS6: Both | AT6: Time | AU6: Original | AV6: Baseline-adjusted | AW6: Dose-normalized | AX6: Both | AY6: Time | AZ6: Original | BA6: Baseline-adjusted | BB6: Dose-normalized | BC6: Both | BD6: Time | BE6: Original | BF6: Baseline-adjusted | BG6: Dose-normalized | BH6: Both | BI6: Time | BJ6: Original | BK6: Baseline-adjusted | BL6: Dose-normalized | BM6: Both | BN6: Time | BO6: Original | BP6: Baseline-adjusted | BQ6: Dose-normalized | BR6: Both | BS6: Time | BT6: Original | BU6: Baseline-adjusted | BV6: Dose-normalized | BW6: Both | BX6: Time | BY6: Original | BZ6: Baseline-adjusted | CA6: Dose-normalized | CB6: Both | CC6: Time | CD6: Original | CE6: Baseline-adjusted | CF6: Dose-normalized | CG6: Both | CH6: Time | CI6: Original | CJ6: Baseline-adjusted | CK6: Dose-normalized | CL6: Both | CM6: Time | CN6: Original | CO6: Baseline-adjusted | CP6: Dose-normalized | CQ6: Both | CR6: Time | CS6: Original | CT6: Baseline-adjusted | CU6: Dose-normalized | CV6: Both | CW6: Time | CX6: Original | CY6: Baseline-adjusted | CZ6: Dose-normalized | DA6: Both | DB6: Time | DC6: Original | DD6: Baseline-adjusted | DE6: Dose-normalized | DF6: Both | DG6: Time | DH6: Original | DI6: Baseline-adjusted | DJ6: Dose-normalized | DK6: Both | DL6: Time | DM6: Original | DN6: Baseline-adjusted | DO6: Dose-normalized | DP6: Both | DQ6: Time | DR6: Original | DS6: Baseline-adjusted | DT6: Dose-normalized | DU6: Both
A7: 0 | B7: 29.94156254 | C7: =IF(ISBLANK(B7), "", MAX(0,B7-B$7)) -> 0 | D7: =IF(ISBLANK(B7), "", B7/B$3) -> 3.171775693 | E7: =IF(ISBLANK(B7), "", MAX(0, (B7-B$7)/B$3)) -> 0 | F7: 0 | G7: 26 | H7: =IF(ISBLANK(G7), "", MAX(0,G7-G$7)) -> 0 | I7: =IF(ISBLANK(G7), "", G7/G$3) -> 0.9923664122 | J7: =IF(ISBLANK(G7), "", MAX(0, (G7-G$7)/G$3)) -> 0 | K7: 0 | L7: 23.33982705 | M7: =IF(ISBLANK(L7), "", MAX(0,L7-L$7)) -> 0 | N7: =IF(ISBLANK(L7), "", L7/L$3) -> 2.333982705 | O7: =IF(ISBLANK(L7), "", MAX(0, (L7-L$7)/L$3)) -> 0 | P7: 0 | Q7: 20.0870131 | R7: =IF(ISBLANK(Q7), "", MAX(0,Q7-Q$7)) -> 0 | S7: =IF(ISBLANK(Q7), "", Q7/Q$3) -> 5.021753276 | T7: =IF(ISBLANK(Q7), "", MAX(0, (Q7-Q$7)/Q$3)) -> 0 | U7: 0 | V7: 45.72614229 | W7: =IF(ISBLANK(V7), "", MAX(0,V7-V$7)) -> 0 | X7: =IF(ISBLANK(V7), "", V7/V$3) -> 9.145228458 | Y7: =IF(ISBLANK(V7), "", MAX(0, (V7-V$7)/V$3)) -> 0 | Z7: 0 | AA7: 8.17 | AB7: =IF(ISBLANK(AA7), "", MAX(0,AA7-AA$7)) -> 0 | AC7: =IF(ISBLANK(AA7), "", AA7/AA$3) -> 0.817 | AD7: =IF(ISBLANK(AA7), "", MAX(0, (AA7-AA$7)/AA$3)) -> 0 | AE7: 0 | AF7: 206.7329483 | AG7: =IF(ISBLANK(AF7), "", MAX(0,AF7-AF$7)) -> 0 | AH7: =IF(ISBLANK(AF7), "", AF7/AF$3) -> 10.33664742 | AI7: =IF(ISBLANK(AF7), "", MAX(0, (AF7-AF$7)/AF$3)) -> 0 | AJ7: 0 | AK7: 0 | AL7: =IF(ISBLANK(AK7), "", MAX(0,AK7-AK$7)) -> 0 | AM7: =IF(ISBLANK(AK7), "", AK7/AK$3) -> 0 | AN7: =IF(ISBLANK(AK7), "", MAX(0, (AK7-AK$7)/AK$3)) -> 0 | AO7: 0 | AP7: 38.29900731 | AQ7: =IF(ISBLANK(AP7), "", MAX(0,AP7-AP$7)) -> 0 | AR7: =IF(ISBLANK(AP7), "", AP7/AP$3) -> 7.659801462 | AS7: =IF(ISBLANK(AP7), "", MAX(0, (AP7-AP$7)/AP$3)) -> 0 | AT7: 0 | AU7: 26.15831327 | AV7: =IF(ISBLANK(AU7), "", MAX(0,AU7-AU$7)) -> 0 | AW7: =IF(ISBLANK(AU7), "", AU7/AU$3) -> 6.539578317 | AX7: =IF(ISBLANK(AU7), "", MAX(0, (AU7-AU$7)/AU$3)) -> 0 | AY7: 0 | AZ7: 20.10706951 | BA7: =IF(ISBLANK(AZ7), "", MAX(0,AZ7-AZ$7)) -> 0 | BB7: =IF(ISBLANK(AZ7), "", AZ7/AZ$3) -> 2.010706951 | BC7: =IF(ISBLANK(AZ7), "", MAX(0, (AZ7-AZ$7)/AZ$3)) -> 0 | BD7: 0 | BE7: 35.55263347 | BF7: =IF(ISBLANK(BE7), "", MAX(0,BE7-BE$7)) -> 0 | BG7: =IF(ISBLANK(BE7), "", BE7/BE$3) -> 7.110526694 | BH7: =IF(ISBLANK(BE7), "", MAX(0, (BE7-BE$7)/BE$3)) -> 0 | BI7: 0 | BJ7: 56.13220063 | BK7: =IF(ISBLANK(BJ7), "", MAX(0,BJ7-BJ$7)) -> 0 | BL7: =IF(ISBLANK(BJ7), "", BJ7/BJ$3) -> 22.45288025 | BM7: =IF(ISBLANK(BJ7), "", MAX(0, (BJ7-BJ$7)/BJ$3)) -> 0 | BN7: 0 | BO7: 33 | BP7: =IF(ISBLANK(BO7), "", MAX(0,BO7-BO$7)) -> 0 | BQ7: =IF(ISBLANK(BO7), "", BO7/BO$3) -> 3.3 | BR7: =IF(ISBLANK(BO7), "", MAX(0, (BO7-BO$7)/BO$3)) -> 0 | BS7: 0 | BT7: 88.43408974 | BU7: =IF(ISBLANK(BT7), "", MAX(0,BT7-BT$7)) -> 0 | BV7: =IF(ISBLANK(BT7), "", BT7/BT$3) -> 8.843408974 | BW7: =IF(ISBLANK(BT7), "", MAX(0, (BT7-BT$7)/BT$3)) -> 0 | BX7: 0 | BY7: 64.15723168 | BZ7: =IF(ISBLANK(BY7), "", MAX(0,BY7-BY$7)) -> 0 | CA7: =IF(ISBLANK(BY7), "", BY7/BY$3) -> 6.415723168 | CB7: =IF(ISBLANK(BY7), "", MAX(0, (BY7-BY$7)/BY$3)) -> 0 | CC7: 0 | CD7: 40 | CE7: =IF(ISBLANK(CD7), "", MAX(0,CD7-CD$7)) -> 0 | CF7: =IF(ISBLANK(CD7), "", CD7/CD$3) -> 8 | CG7: =IF(ISBLANK(CD7), "", MAX(0, (CD7-CD$7)/CD$3)) -> 0 | CH7: 0 | CI7: 40 | CJ7: =IF(ISBLANK(CI7), "", MAX(0,CI7-CI$7)) -> 0 | CK7: =IF(ISBLANK(CI7), "", CI7/CI$3) -> 8 | CL7: =IF(ISBLANK(CI7), "", MAX(0, (CI7-CI$7)/CI$3)) -> 0 | CM7: 0 | CN7: 40 | CO7: =IF(ISBLANK(CN7), "", MAX(0,CN7-CN$7)) -> 0 | CP7: =IF(ISBLANK(CN7), "", CN7/CN$3) -> 8 | CQ7: =IF(ISBLANK(CN7), "", MAX(0, (CN7-CN$7)/CN$3)) -> 0 | CR7: 0 | CS7: 10.13236752 | CT7: =IF(ISBLANK(CS7), "", MAX(0,CS7-CS$7)) -> 0 | CU7: =IF(ISBLANK(CS7), "", CS7/CS$3) -> 1.013236752 | CV7: =IF(ISBLANK(CS7), "", MAX(0, (CS7-CS$7)/CS$3)) -> 0 | CW7: 0 | CX7: 45 | CY7: =IF(ISBLANK(CX7), "", MAX(0,CX7-CX$7)) -> 0 | CZ7: =IF(ISBLANK(CX7), "", CX7/CX$3) -> 4.5 | DA7: =IF(ISBLANK(CX7), "", MAX(0, (CX7-CX$7)/CX$3)) -> 0 | DB7: 0 | DC7: 14 | DD7: =IF(ISBLANK(DC7), "", MAX(0,DC7-DC$7)) -> 0 | DE7: =IF(ISBLANK(DC7), "", DC7/DC$3) -> 2.8 | DF7: =IF(ISBLANK(DC7), "", MAX(0, (DC7-DC$7)/DC$3)) -> 0 | DG7: 0 | DH7: 26.37867647 | DI7: =IF(ISBLANK(DH7), "", MAX(0,DH7-DH$7)) -> 0 | DJ7: =IF(ISBLANK(DH7), "", DH7/DH$3) -> 13.18933824 | DK7: =IF(ISBLANK(DH7), "", MAX(0, (DH7-DH$7)/DH$3)) -> 0 | DL7: 0 | DM7: 26.16 | DN7: =IF(ISBLANK(DM7), "", MAX(0,DM7-DM$7)) -> 0 | DO7: =IF(ISBLANK(DM7), "", DM7/DM$3) -> 5.232 | DP7: =IF(ISBLANK(DM7), "", MAX(0, (DM7-DM$7)/DM$3)) -> 0 | DQ7: 0 | DR7: 10.88861076 | DS7: =IF(ISBLANK(DR7), "", MAX(0,DR7-DR$7)) -> 0 | DT7: =IF(ISBLANK(DR7), "", DR7/DR$3) -> 1.088861076 | DU7: =IF(ISBLANK(DR7), "", MAX(0, (DR7-DR$7)/DR$3)) -> 0
A8: 1 | B8: 1137.517702 | C8: 1107.576139 | D8: 120.4997566 | E8: 117.3279809 | F8: 1 | G8: 989 | H8: 963 | I8: 37.7480916 | J8: 36.75572519 | K8: 1 | L8: 1612.814124 | M8: 1589.474297 | N8: 161.2814124 | O8: 158.9474297 | P8: 1 | Q8: 378.4138646 | R8: 358.3268515 | S8: 94.60346615 | T8: 89.58171287 | U8: 1 | V8: 165.4637044 | W8: 119.7375621 | X8: 33.09274087 | Y8: 23.94751242 | Z8: 1 | AA8: 1253.06 | AB8: 1244.89 | AC8: 125.306 | AD8: 124.489 | AE8: 1 | AF8: 607.6649152 | AG8: 400.9319669 | AH8: 30.38324576 | AI8: 20.04659835 | AJ8: 1 | AK8: 399.9192793 | AL8: 399.9192793 | AM8: 99.97981981 | AN8: 99.97981981 | AO8: 1 | AP8: 229.7092064 | AQ8: 191.4101991 | AR8: 45.94184129 | AS8: 38.28203983 | AT8: 1 | AU8: 206.7623396 | AV8: 180.6040263 | AW8: 51.6905849 | AX8: 45.15100659 | AY8: 1 | AZ8: 874.9358777 | BA8: 854.8288082 | BB8: 87.49358777 | BC8: 85.48288082 | BD8: 1 | BE8: 392.703087 | BF8: 357.1504535 | BG8: 78.5406174 | BH8: 71.43009071 | BI8: 1 | BJ8: 226.431143 | BK8: 170.2989424 | BL8: 90.5724572 | BM8: 68.11957695 | BN8: 2 | BO8: 363.8 | BP8: 330.8 | BQ8: 36.38 | BR8: 33.08 | BS8: 1 | BT8: 467.5670473 | BU8: 379.1329575 | BV8: 46.75670473 | BW8: 37.91329575 | BX8: 1 | BY8: 466.9166506 | BZ8: 402.7594189 | CA8: 46.69166506 | CB8: 40.27594189 | CC8: 2 | CD8: 415 | CE8: 375 | CF8: 83 | CG8: 75 | CH8: 2 | CI8: 414 | CJ8: 374 | CK8: 82.8 | CL8: 74.8 | CM8: 2 | CN8: 232 | CO8: 192 | CP8: 46.4 | CQ8: 38.4 | CR8: 1 | CS8: 344.5036839 | CT8: 334.3713164 | CU8: 34.45036839 | CV8: 33.43713164 | CW8: 1 | CX8: 463 | CY8: 418 | CZ8: 46.3 | DA8: 41.8 | DB8: 0.1667 | DC8: 43.4 | DD8: 29.4 | DE8: 8.68 | DF8: 5.88 | DG8: 0.0208333 | DH8: 49.54044118 | DI8: 23.16176471 | DJ8: 24.77022059 | DK8: 11.58088235 | DL8: 1 | DM8: 281.25 | DN8: 255.09 | DO8: 56.25 | DP8: 51.018 | DQ8: 0.0375 | DR8: 25.15644556 | DS8: 14.2678348 | DT8: 2.515644556 | DU8: 1.42678348
A9: 2 | B9: 949.486224 | C9: 919.5446615 | D9: 100.5811678 | E9: 97.4093921 | F9: 2 | G9: 1599 | H9: 1573 | I9: 61.03053435 | J9: 60.03816794 | K9: 2 | L9: 1035.212134 | M9: 1011.872307 | N9: 103.5212134 | O9: 101.1872307 | P9: 2 | Q9: 358.908099 | R9: 338.8210859 | S9: 89.72702476 | T9: 84.70527148 | U9: 2 | V9: 610.5701958 | W9: 564.8440535 | X9: 122.1140392 | Y9: 112.9688107 | Z9: 10 | AA9: 76.27 | AB9: 68.1 | AC9: 7.627 | AD9: 6.81 | AE9: 2 | AF9: 686.8304278 | AG9: 480.0974795 | AH9: 34.34152139 | AI9: 24.00487398 | AJ9: 2 | AK9: 281.7508835 | AL9: 281.7508835 | AM9: 70.43772087 | AN9: 70.43772087 | AO9: 2 | AP9: 618.9575312 | AQ9: 580.6585239 | AR9: 123.7915062 | AS9: 116.1317048 | AT9: 3 | AU9: 301.1473561 | AV9: 274.9890428 | AW9: 75.28683901 | AX9: 68.7472607 | AY9: 2 | AZ9: 658.2555036 | BA9: 638.1484341 | BB9: 65.82555036 | BC9: 63.81484341 | BD9: 3 | BE9: 330.4445564 | BF9: 294.8919229 | BG9: 66.08891128 | BH9: 58.97838459 | BI9: 3 | BJ9: 241.6812369 | BK9: 185.5490363 | BL9: 96.67249476 | BM9: 74.21961451 | BN9: 4 | BO9: 354.3 | BP9: 321.3 | BQ9: 35.43 | BR9: 32.13 | BS9: 2 | BT9: 912.7143311 | BU9: 824.2802413 | BV9: 91.27143311 | BW9: 82.42802413 | BX9: 2 | BY9: 669.8544316 | BZ9: 605.6971999 | CA9: 66.98544316 | CB9: 60.56971999 | CR9: 2 | CS9: 223.6785307 | CT9: 213.5461632 | CU9: 22.36785307 | CV9: 21.35461632 | CW9: 2 | CX9: 743 | CY9: 698 | CZ9: 74.3 | DA9: 69.8 | DB9: 3 | DC9: 244 | DD9: 230 | DE9: 48.8 | DF9: 46 | DG9: 0.0416667 | DH9: 93.29044118 | DI9: 66.91176471 | DJ9: 46.64522059 | DK9: 33.45588235 | DL9: 2 | DM9: 289.62 | DN9: 263.46 | DO9: 57.924 | DP9: 52.692 | DQ9: 0.13 | DR9: 43.17897372 | DS9: 32.29036296 | DT9: 4.317897372 | DU9: 3.229036296
A10: 3 | B10: 916.4236186 | C10: 886.4820561 | D10: 97.07877316 | E10: 93.90699746 | F10: 3 | G10: 1311 | H10: 1285 | I10: 50.03816794 | J10: 49.04580153 | K10: 3 | L10: 1009.573915 | M10: 986.234088 | N10: 100.9573915 | O10: 98.6234088 | P10: 4 | Q10: 218.4984565 | R10: 198.4114434 | S10: 54.62461412 | T10: 49.60286084 | U10: 3 | V10: 511.7132188 | W10: 465.9870765 | X10: 102.3426438 | Y10: 93.1974153 | Z10: 25 | AA10: 16.34 | AB10: 8.17 | AC10: 1.634 | AD10: 0.817 | AE10: 3 | AF10: 763.761601 | AG10: 557.0286527 | AH10: 38.18808005 | AI10: 27.85143264 | AJ10: 3 | AK10: 283.9809518 | AL10: 283.9809518 | AM10: 70.99523795 | AN10: 70.99523795 | AO10: 3 | AP10: 397.9705816 | AQ10: 359.6715743 | AR10: 79.59411632 | AS10: 71.93431486 | AT10: 5 | AU10: 555.6733145 | AV10: 529.5150013 | AW10: 138.9183286 | AX10: 132.3787503 | AY10: 3 | AZ10: 447.4298103 | BA10: 427.3227408 | BB10: 44.74298103 | BC10: 42.73227408 | BD10: 5 | BE10: 189.3588114 | BF10: 153.8061779 | BG10: 37.87176228 | BH10: 30.76123559 | BI10: 5 | BJ10: 174.9917021 | BK10: 118.8595015 | BL10: 69.99668084 | BM10: 47.54380059 | BN10: 8 | BO10: 270.5 | BP10: 237.5 | BQ10: 27.05 | BR10: 23.75 | BS10: 3 | BT10: 606.1481242 | BU10: 517.7140344 | BV10: 60.61481242 | BW10: 51.77140344 | BX10: 3 | BY10: 696.8963215 | BZ10: 632.7390898 | CA10: 69.68963215 | CB10: 63.27390898 | CR10: 3 | CS10: 159.2916508 | CT10: 149.1592833 | CU10: 15.92916508 | CV10: 14.91592833 | CW10: 3 | CX10: 589 | CY10: 544 | CZ10: 58.9 | DA10: 54.4 | DB10: 5 | DC10: 272 | DD10: 258 | DE10: 54.4 | DF10: 51.6 | DG10: 0.0833333 | DH10: 126.1029412 | DI10: 99.72426471 | DJ10: 63.05147059 | DK10: 49.86213235 | DL10: 3 | DM10: 305.02 | DN10: 278.86 | DO10: 61.004 | DP10: 55.772 | DQ10: 0.145 | DR10: 54.44305382 | DS10: 43.55444306 | DT10: 5.444305382 | DU10: 4.355444306
A11: 4 | B11: 521.7031437 | C11: 491.7615812 | D11: 55.26516353 | E11: 52.09338783 | F11: 4 | G11: 1339 | H11: 1313 | I11: 51.10687023 | J11: 50.11450382 | K11: 4 | L11: 588.1158986 | M11: 564.7760716 | N11: 58.81158986 | O11: 56.47760716 | P11: 5 | Q11: 127.9850035 | R11: 107.8979904 | S11: 31.99625087 | T11: 26.97449759 | U11: 4 | V11: 304.8214562 | W11: 259.0953139 | X11: 60.96429123 | Y11: 51.81906278 | Z11: 35 | AA11: 10.9 | AB11: 2.73 | AC11: 1.09 | AD11: 0.273 | AE11: 4 | AF11: 945.2371877 | AG11: 738.5042394 | AH11: 47.26185939 | AI11: 36.92521197 | AJ11: 4 | AK11: 284.6123709 | AL11: 284.6123709 | AM11: 71.15309273 | AN11: 71.15309273 | AO11: 4 | AP11: 356.2497543 | AQ11: 317.950747 | AR11: 71.24995086 | AS11: 63.5901494 | AT11: 7 | AU11: 225.8122965 | AV11: 199.6539833 | AW11: 56.45307413 | AX11: 49.91349581 | AY11: 4 | AZ11: 332.7413059 | BA11: 312.6342363 | BB11: 33.27413059 | BC11: 31.26342363 | BD11: 7 | BE11: 139.9041866 | BF11: 104.3515531 | BG11: 27.98083732 | BH11: 20.87031063 | BI11: 7 | BJ11: 118.9270525 | BK11: 62.79485187 | BL11: 47.570821 | BM11: 25.11794075 | BN11: 15 | BO11: 175.3 | BP11: 142.3 | BQ11: 17.53 | BR11: 14.23 | BS11: 4 | BT11: 531.7603539 | BU11: 443.3262642 | BV11: 53.1760354 | BW11: 44.33262642 | BX11: 4 | BY11: 685.6387351 | BZ11: 621.4815035 | CA11: 68.56387351 | CB11: 62.14815035 | CR11: 4 | CS11: 94.2953509 | CT11: 84.16298338 | CU11: 9.42953509 | CV11: 8.416298338 | CW11: 4 | CX11: 451 | CY11: 406 | CZ11: 45.1 | DA11: 40.6 | DB11: 7 | DC11: 169 | DD11: 155 | DE11: 33.8 | DF11: 31 | DG11: 0.1666667 | DH11: 198.1617647 | DI11: 171.7830882 | DJ11: 99.08088235 | DK11: 85.89154412 | DL11: 4 | DM11: 243.74 | DN11: 217.58 | DO11: 48.748 | DP11: 43.516 | DQ11: 0.275 | DR11: 80.35043805 | DS11: 69.46182729 | DT11: 8.035043805 | DU11: 6.946182729
A12: 5 | B12: 334.1645014 | C12: 304.2229389 | D12: 35.39878193 | E12: 32.22700624 | F12: 5 | G12: 1186 | H12: 1160 | I12: 45.26717557 | J12: 44.27480916 | K12: 5 | L12: 493.7392029 | M12: 470.3993758 | N12: 49.37392029 | O12: 47.03993758 | P12: 6 | Q12: 84.36805787 | R12: 64.28104476 | S12: 21.09201447 | T12: 16.07026119 | U12: 5 | V12: 213.4934359 | W12: 167.7672936 | X12: 42.69868718 | Y12: 33.55345873 | AE12: 5 | AF12: 889.9643237 | AG12: 683.2313754 | AH12: 44.49821619 | AI12: 34.16156877 | AJ12: 7 | AK12: 260.6791421 | AL12: 260.6791421 | AM12: 65.16978553 | AN12: 65.16978553 | AO12: 5 | AP12: 274.5313209 | AQ12: 236.2323136 | AR12: 54.90626417 | AS12: 47.24646271 | AT12: 8 | AU12: 163.6783455 | AV12: 137.5200322 | AW12: 40.91958637 | AX12: 34.38000805 | AY12: 7 | AZ12: 96.51561557 | BA12: 76.40854605 | BB12: 9.651561557 | BC12: 7.640854605 | BD12: 9 | BE12: 127.6349934 | BF12: 92.08235993 | BG12: 25.52699868 | BH12: 18.41647199 | BI12: 9 | BJ12: 97.33697094 | BK12: 41.20477031 | BL12: 38.93478838 | BM12: 16.48190812 | BN12: 21 | BO12: 116.6 | BP12: 83.6 | BQ12: 11.66 | BR12: 8.36 | BS12: 5 | BT12: 539.1995014 | BU12: 450.7654117 | BV12: 53.91995014 | BW12: 45.07654117 | BX12: 5 | BY12: 593.0269621 | BZ12: 528.8697304 | CA12: 59.30269621 | CB12: 52.88697304 | CR12: 7 | CS12: 27.66219026 | CT12: 17.52982274 | CU12: 2.766219026 | CV12: 1.752982274 | CW12: 5 | CX12: 423 | CY12: 378 | CZ12: 42.3 | DA12: 37.8 | DB12: 9 | DC12: 115 | DD12: 101 | DE12: 23 | DF12: 20.2 | DG12: 0.3333333 | DH12: 297.8860294 | DI12: 271.5073529 | DJ12: 148.9430147 | DK12: 135.7536765 | DL12: 5 | DM12: 184.65 | DN12: 158.49 | DO12: 36.93 | DP12: 31.698 | DQ12: 0.44 | DR12: 127.6595745 | DS12: 116.7709637 | DT12: 12.76595745 | DU12: 11.67709637
A13: 6 | B13: 308.025142 | C13: 278.0835795 | D13: 32.62978199 | E13: 29.4580063 | F13: 6 | G13: 1031 | H13: 1005 | I13: 39.35114504 | J13: 38.35877863 | K13: 6 | L13: 356.0784393 | M13: 332.7386123 | N13: 35.60784393 | O13: 33.27386123 | P13: 7 | Q13: 58.58577222 | R13: 38.49875912 | S13: 14.64644306 | T13: 9.624689779 | U13: 6 | V13: 117.1488958 | W13: 71.42275353 | X13: 23.42977916 | Y13: 14.28455071 | AE13: 6 | AF13: 703.705048 | AG13: 496.9720997 | AH13: 35.1852524 | AI13: 24.84860499 | AJ13: 8 | AK13: 204.296015 | AL13: 204.296015 | AM13: 51.07400374 | AN13: 51.07400374 | AO13: 6 | AP13: 180.7499797 | AQ13: 142.4509724 | AR13: 36.14999595 | AS13: 28.49019448 | AT13: 10 | AU13: 147.635947 | AV13: 121.4776337 | AW13: 36.90898674 | AX13: 30.36940843 | AY13: 9 | AZ13: 59.38607424 | BA13: 39.27900472 | BB13: 5.938607424 | BC13: 3.927900472 | BD13: 11 | BE13: 85.04678541 | BF13: 49.49415194 | BG13: 17.00935708 | BH13: 9.898830388 | BI13: 11 | BJ13: 62.06042689 | BK13: 5.92822626 | BL13: 24.82417076 | BM13: 2.371290504 | BN13: 28 | BO13: 66.9 | BP13: 33.9 | BQ13: 6.69 | BR13: 3.39 | CR13: 11 | CS13: 11.12072876 | CT13: 0.9883612436 | CU13: 1.112072876 | CV13: 0.09883612436 | DB13: 11 | DC13: 71 | DD13: 57 | DE13: 14.2 | DF13: 11.4 | DL13: 6 | DM13: 155.42 | DN13: 129.26 | DO13: 31.084 | DP13: 25.852 | DQ13: 0.68 | DR13: 185.106383 | DS13: 174.2177722 | DT13: 18.5106383 | DU13: 17.42177722
A14: 7 | B14: 205.1310102 | C14: 175.1894477 | D14: 21.72997989 | E14: 18.5582042 | F14: 7 | G14: 839 | H14: 813 | I14: 32.02290076 | J14: 31.03053435 | K14: 7 | L14: 383.445843 | M14: 360.1060159 | N14: 38.3445843 | O14: 36.01060159 | P14: 8 | Q14: 42.711631 | R14: 22.6246179 | S14: 10.67790775 | T14: 5.656154475 | U14: 7 | V14: 84.87149606 | W14: 39.14535377 | X14: 16.97429921 | Y14: 7.829070753 | AE14: 7 | AF14: 744.2292381 | AG14: 537.4962898 | AH14: 37.21146191 | AI14: 26.87481449 | AJ14: 9 | AK14: 186.0589593 | AL14: 186.0589593 | AM14: 46.51473981 | AN14: 46.51473981 | AO14: 7 | AP14: 153.9878842 | AQ14: 115.6888769 | AR14: 30.79757684 | AS14: 23.13777538 | AT14: 12 | AU14: 83.53029718 | AV14: 57.37198392 | AW14: 20.8825743 | AX14: 14.34299598 | AY14: 11 | AZ14: 37.49619471 | BA14: 17.3891252 | BB14: 3.749619471 | BC14: 1.73891252 | BD14: 13 | BE14: 57.14572047 | BF14: 21.593087 | BG14: 11.42914409 | BH14: 4.3186174 | BI14: 13 | BJ14: 38.27719289 | BK14: 0 | BL14: 15.31087716 | BM14: 0 | CR14: 23 | CS14: 9.831500494 | CT14: 0 | CU14: 0.9831500494 | CV14: 0 | DL14: 7 | DM14: 115.26 | DN14: 89.1 | DO14: 23.052 | DP14: 17.82 | DQ14: 1 | DR14: 286.8585732 | DS14: 275.9699624 | DT14: 28.68585732 | DU14: 27.59699624
A15: 8 | B15: 131.3942937 | C15: 101.4527312 | D15: 13.91888704 | E15: 10.74711135 | F15: 8 | G15: 557 | H15: 531 | I15: 21.25954198 | J15: 20.26717557 | K15: 8 | L15: 267.3454196 | M15: 244.0055925 | N15: 26.73454196 | O15: 24.40055925 | P15: 9 | Q15: 34.10278139 | R15: 14.01576829 | S15: 8.525695348 | T15: 3.503942072 | U15: 8 | V15: 53.85449169 | W15: 8.128349394 | X15: 10.77089834 | Y15: 1.625669879 | AE15: 8 | AF15: 813.0242211 | AG15: 606.2912728 | AH15: 40.65121106 | AI15: 30.31456364 | AJ15: 10 | AK15: 160.1006172 | AL15: 160.1006172 | AM15: 40.02515429 | AN15: 40.02515429 | AO15: 8 | AP15: 115.5451661 | AQ15: 77.24615875 | AR15: 23.10903321 | AS15: 15.44923175 | AT15: 15 | AU15: 48.94287019 | AV15: 22.78455693 | AW15: 12.23571755 | AX15: 5.696139232 | AY15: 14 | AZ15: 27.52423192 | BA15: 7.417162406 | BB15: 2.752423192 | BC15: 0.7417162406 | BD15: 15 | BE15: 49.82903764 | BF15: 14.27640417 | BG15: 9.965807528 | BH15: 2.855280834 | BI15: 15 | BJ15: 42.03306993 | BK15: 0 | BL15: 16.81322797 | BM15: 0 | DL15: 10 | DM15: 62.42 | DN15: 36.26 | DO15: 12.484 | DP15: 7.252 | DQ15: 1.5 | DR15: 422.0275344 | DS15: 411.1389236 | DT15: 42.20275344 | DU15: 41.11389236
A16: 9 | B16: 98.9797435 | C16: 69.03818096 | D16: 10.48514232 | E16: 7.313366627 | F16: 9 | G16: 532 | H16: 506 | I16: 20.30534351 | J16: 19.3129771 | K16: 9 | L16: 151.4492306 | M16: 128.1094035 | N16: 15.14492306 | O16: 12.81094035 | P16: 12 | Q16: 19.17859629 | R16: 0 | S16: 4.794649072 | T16: 0 | U16: 9 | V16: 39.15579615 | W16: 0 | X16: 7.83115923 | Y16: 0 | AE16: 9 | AF16: 619.4453011 | AG16: 412.7123528 | AH16: 30.97226506 | AI16: 20.63561764 | AJ16: 11 | AK16: 152.3651416 | AL16: 152.3651416 | AM16: 38.09128539 | AN16: 38.09128539 | AO16: 9 | AP16: 95.23566797 | AQ16: 56.93666066 | AR16: 19.04713359 | AS16: 11.38733213 | AT16: 17 | AU16: 88.64052237 | AV16: 62.4822091 | AW16: 22.16013059 | AX16: 15.62055228 | AY16: 18 | AZ16: 21.2776693 | BA16: 1.170599781 | BB16: 2.12776693 | BC16: 0.1170599781 | BD16: 17 | BE16: 46.03337169 | BF16: 10.48073822 | BG16: 9.206674338 | BH16: 2.096147644 | BI16: 17 | BJ16: 35.76222356 | BK16: 0 | BL16: 14.30488942 | BM16: 0 | DL16: 14 | DM16: 30.89 | DN16: 4.73 | DO16: 6.178 | DP16: 0.946 | DQ16: 2 | DR16: 428.4105131 | DS16: 417.5219023 | DT16: 42.84105131 | DU16: 41.75219023
A17: 10 | B17: 42.71769539 | C17: 12.77613285 | D17: 4.525179596 | E17: 1.353403904 | F17: 10 | G17: 659 | H17: 633 | I17: 25.15267176 | J17: 24.16030534 | K17: 10 | L17: 132.0469668 | M17: 108.7071397 | N17: 13.20469668 | O17: 10.87071397 | P17: 14 | Q17: 16.82447565 | R17: 0 | S17: 4.206118913 | T17: 0 | U17: 10 | V17: 30.75072366 | W17: 0 | X17: 6.150144731 | Y17: 0 | AE17: 10 | AF17: 668.7141221 | AG17: 461.9811738 | AH17: 33.43570611 | AI17: 23.09905869 | AJ17: 14 | AK17: 84.7248597 | AL17: 84.7248597 | AM17: 21.18121493 | AN17: 21.18121493 | AO17: 10 | AP17: 94.01824689 | AQ17: 55.71923958 | AR17: 18.80364938 | AS17: 11.14384792 | AT17: 19 | AU17: 43.90363156 | AV17: 17.7453183 | AW17: 10.97590789 | AX17: 4.436329574 | AY17: 21 | AZ17: 24.21089633 | BA17: 4.103826819 | BB17: 2.421089633 | BC17: 0.4103826819 | BD17: 19 | BE17: 30.01301663 | BF17: 0 | BG17: 6.002603326 | BH17: 0 | BI17: 19 | BJ17: 30.97250727 | BK17: 0 | BL17: 12.38900291 | BM17: 0 | DL17: 18 | DM17: 17.49 | DN17: 0 | DO17: 3.498 | DP17: 0 | DQ17: 2.5 | DR17: 516.6458073 | DS17: 505.7571965 | DT17: 51.66458073 | DU17: 50.57571965
A18: 11 | B18: 28.28809994 | C18: 0 | D18: 2.996620756 | E18: 0 | F18: 11 | G18: 431 | H18: 405 | I18: 16.45038168 | J18: 15.45801527 | K18: 11 | L18: 93.85514225 | M18: 70.51531521 | N18: 9.385514225 | O18: 7.051531521 | P18: 15 | Q18: 14.82173663 | R18: 0 | S18: 3.705434158 | T18: 0 | U18: 11 | V18: 24.84973414 | W18: 0 | X18: 4.969946827 | Y18: 0 | AE18: 11 | AF18: 542.3508101 | AG18: 335.6178618 | AH18: 27.11754051 | AI18: 16.78089309 | AJ18: 16 | AK18: 51.01882354 | AL18: 51.01882354 | AM18: 12.75470589 | AN18: 12.75470589 | AO18: 11 | AP18: 90.48538421 | AQ18: 52.1863769 | AR18: 18.09707684 | AS18: 10.43727538 | AT18: 22 | AU18: 32.08781646 | AV18: 5.929503196 | AW18: 8.021954116 | AX18: 1.482375799 | AY18: 25 | AZ18: 22.65009662 | BA18: 2.54302711 | BB18: 2.265009662 | BC18: 0.254302711 | BD18: 21 | BE18: 28.81501812 | BF18: 0 | BG18: 5.763003624 | BH18: 0 | BI18: 21 | BJ18: 43.16351541 | BK18: 0 | BL18: 17.26540616 | BM18: 0 | DL18: 22 | DM18: 15.31 | DN18: 0 | DO18: 3.062 | DP18: 0 | DQ18: 3 | DR18: 452.81602 | DS18: 441.9274092 | DT18: 45.281602 | DU18: 44.19274092
A19: 12 | B19: 27.35608233 | C19: 0 | D19: 2.897890077 | E19: 0 | K19: 12 | L19: 58.94468305 | M19: 35.60485601 | N19: 5.894468305 | O19: 3.560485601 | U19: 12 | V19: 21.4778893 | W19: 0 | X19: 4.29557786 | Y19: 0 | AE19: 12 | AF19: 442.9954552 | AG19: 236.2625069 | AH19: 22.14977276 | AI19: 11.81312535 | AJ19: 18 | AK19: 67.37029303 | AL19: 67.37029303 | AM19: 16.84257326 | AN19: 16.84257326 | AO19: 12 | AP19: 81.91053197 | AQ19: 43.61152466 | AR19: 16.38210639 | AS19: 8.722304931 | BD19: 23 | BE19: 20.18568352 | BF19: 0 | BG19: 4.037136704 | BH19: 0 | BI19: 23 | BJ19: 35.33046199 | BK19: 0 | BL19: 14.1321848 | BM19: 0 | DL19: 26 | DM19: 19.87 | DN19: 0 | DO19: 3.974 | DP19: 0 | DQ19: 4 | DR19: 432.5406758 | DS19: 421.652065 | DT19: 43.25406758 | DU19: 42.1652065
A20: 13 | B20: 18 | C20: 0 | D20: 1.906779661 | E20: 0 | K20: 13 | L20: 48.93719963 | M20: 25.59737258 | N20: 4.893719963 | O20: 2.559737258 | U20: 13 | V20: 19.34973205 | W20: 0 | X20: 3.86994641 | Y20: 0 | AO20: 13 | AP20: 46.69845318 | AQ20: 8.399445868 | AR20: 9.339690636 | AS20: 1.679889174 | BD20: 25 | BE20: 18.10513895 | BF20: 0 | BG20: 3.62102779 | BH20: 0 | BI20: 25 | BJ20: 41.66547726 | BK20: 0 | BL20: 16.6661909 | BM20: 0 | DL20: 30 | DM20: 27.27 | DN20: 1.11 | DO20: 5.454 | DP20: 0.222 | DQ20: 5 | DR20: 365.3316646 | DS20: 354.4430538 | DT20: 36.53316646 | DU20: 35.44430538
A21: 14 | B21: 33.34593502 | C21: 3.40437248 | D21: 3.532408371 | E21: 0.360632678 | K21: 14 | L21: 48.31251481 | M21: 24.97268776 | N21: 4.831251481 | O21: 2.497268776 | AO21: 14 | AP21: 76.55426845 | AQ21: 38.25526114 | AR21: 15.31085369 | AS21: 7.651052228 | BD21: 27 | BE21: 26.93081648 | BF21: 0 | BG21: 5.386163296 | BH21: 0 | BI21: 27 | BJ21: 50.40289036 | BK21: 0 | BL21: 20.16115614 | BM21: 0 | DQ21: 6 | DR21: 324.4055069 | DS21: 313.5168961 | DT21: 32.44055069 | DU21: 31.35168961
AO22: 15 | AP22: 39.55968525 | AQ22: 1.260677942 | AR22: 7.91193705 | AS22: 0.2521355884 | BD22: 29 | BE22: 29.55840192 | BF22: 0 | BG22: 5.911680384 | BH22: 0 | BI22: 29 | BJ22: 62.26343953 | BK22: 6.1312389 | BL22: 24.90537581 | BM22: 2.45249556 | DQ22: 8 | DR22: 219.2740926 | DS22: 208.3854818 | DT22: 21.92740926 | DU22: 20.83854818
AO23: 16 | AP23: 25.24119855 | AQ23: 0 | AR23: 5.04823971 | AS23: 0 | BD23: 31 | BE23: 36.15165824 | BF23: 0.59902477 | BG23: 7.230331648 | BH23: 0.119804954 | BI23: 30 | BJ23: 32.61629862 | BK23: 0 | BL23: 13.04651945 | BM23: 0 | DQ23: 10 | DR23: 152.81602 | DS23: 141.9274092 | DT23: 15.281602 | DU23: 14.19274092
AO24: 17 | AP24: 38.29900731 | AQ24: 0 | AR24: 7.659801461 | AS24: 0 | BI24: 31 | BJ24: 76.63279578 | BK24: 20.50059515 | BL24: 30.65311831 | BM24: 8.20023806 | DQ24: 12 | DR24: 107.008761 | DS24: 96.12015024 | DT24: 10.7008761 | DU24: 9.612015024
AO25: 18 | AP25: 28.83601452 | AQ25: 0 | AR25: 5.767202904 | AS25: 0 | DQ25: 14 | DR25: 76.97121402 | DS25: 66.08260326 | DT25: 7.697121402 | DU25: 6.608260326
AO26: 19 | AP26: 36.60657568 | AQ26: 0 | AR26: 7.321315135 | AS26: 0
AO27: 20 | AP27: 44.73744782 | AQ27: 6.438440513 | AR27: 8.947489565 | AS27: 1.287688103
AO28: 21 | AP28: 25.19814291 | AQ28: 0 | AR28: 5.039628582 | AS28: 0
AO29: 22 | AP29: 44.32721853 | AQ29: 6.028211216 | AR29: 8.865443705 | AS29: 1.205642243
AO30: 23 | AP30: 41.52158779 | AQ30: 3.22258048 | AR30: 8.304317558 | AS30: 0.644516096
AO31: 24 | AP31: 52.62126584 | AQ31: 14.32225853 | AR31: 10.52425317 | AS31: 2.864451706
AO32: 25 | AP32: 85.01160838 | AQ32: 46.71260107 | AR32: 17.00232168 | AS32: 9.342520214
AO33: 26 | AP33: 49.35734524 | AQ33: 11.05833793 | AR33: 9.871469048 | AS33: 2.211667586
AO34: 27 | AP34: 51.03233125 | AQ34: 12.73332394 | AR34: 10.20646625 | AS34: 2.546664789
AO35: 28 | AP35: 25.08442252 | AQ35: 0 | AR35: 5.016884504 | AS35: 0
AO36: 29 | AP36: 83.53418481 | AQ36: 45.2351775 | AR36: 16.70683696 | AS36: 9.0470355
AO37: 30 | AP37: 49.45687731 | AQ37: 11.15787 | AR37: 9.891375462 | AS37: 2.231574

Sheet EC oil
A1: Rosenfield (1973, 1974) | F1: Buckman (1980) | K1: Oriowo (1980) | P1: Lichten (1996)
A2: n | B2: 6 | F2: n | G2: 5 | K2: n | L2: 10 | P2: n | Q2: 28
A3: Dose | B3: 1.667 | F3: Dose | G3: 10 | K3: Dose | L3: 5 | P3: Dose | Q3: 5
A4: Dose units | B4: mg | F4: Dose units | G4: mg | K4: Dose units | L4: mg | P4: Dose units | Q4: mg
A5: Concentrations | F5: Concentrations | K5: Concentrations | P5: Concentrations
A6: Time | B6: Original | C6: Baseline-adjusted | D6: Dose-normalized | E6: Both | F6: Time | G6: Original | H6: Baseline-adjusted | I6: Dose-normalized | J6: Both | K6: Time | L6: Original | M6: Baseline-adjusted | N6: Dose-normalized | O6: Both | P6: Time | Q6: Original | R6: Baseline-adjusted | S6: Dose-normalized | T6: Both
A7: 0 | B7: 4.864864865 | C7: =IF(ISBLANK(B7), "", MAX(0,B7-B$7)) -> 0 | D7: =IF(ISBLANK(B7), "", B7/B$3) -> 2.918335252 | E7: =IF(ISBLANK(B7), "", MAX(0, (B7-B$7)/B$3)) -> 0 | F7: 0 | G7: 60 | H7: =IF(ISBLANK(G7), "", MAX(0,G7-G$7)) -> 0 | I7: =IF(ISBLANK(G7), "", G7/G$3) -> 6 | J7: =IF(ISBLANK(G7), "", MAX(0, (G7-G$7)/G$3)) -> 0 | K7: 0 | L7: 37.64657155 | M7: =IF(ISBLANK(L7), "", MAX(0,L7-L$7)) -> 0 | N7: =IF(ISBLANK(L7), "", L7/L$3) -> 7.52931431 | O7: =IF(ISBLANK(L7), "", MAX(0, (L7-L$7)/L$3)) -> 0 | P7: 0 | Q7: 10 | R7: =IF(ISBLANK(Q7), "", MAX(0,Q7-Q$7)) -> 0 | S7: =IF(ISBLANK(Q7), "", Q7/Q$3) -> 2 | T7: =IF(ISBLANK(Q7), "", MAX(0, (Q7-Q$7)/Q$3)) -> 0
A8: 3 | B8: 61.62162162 | C8: 56.75675676 | D8: 36.96557986 | E8: 34.04724461 | F8: 1 | G8: 344 | H8: 284 | I8: 34.4 | J8: 28.4 | K8: 1 | L8: 74.19022846 | M8: 36.54365691 | N8: 14.83804569 | O8: 7.308731381 | P8: 4 | Q8: 123 | R8: 113 | S8: 24.6 | T8: 22.6
A9: 6 | B9: 62.7027027 | C9: 57.83783784 | D9: 37.6140988 | E9: 34.69576355 | F9: 3.5 | G9: 569 | H9: 509 | I9: 56.9 | J9: 50.9 | K9: 2 | L9: 238.7488586 | M9: 201.1022871 | N9: 47.74977173 | O9: 40.22045742 | P9: 7 | Q9: 134 | R9: 124 | S9: 26.8 | T9: 24.8
A10: 10 | B10: 43.78378378 | C10: 38.91891892 | D10: 26.26501727 | E10: 23.34668201 | F10: 16 | G10: 203 | H10: 143 | I10: 20.3 | J10: 14.3 | K10: 3 | L10: 218.59831 | M10: 180.9517385 | N10: 43.719662 | O10: 36.19034769 | P10: 14 | Q10: 77 | R10: 67 | S10: 15.4 | T10: 13.4
A11: 14 | B11: 23.24324324 | C11: 18.37837838 | D11: 13.94315731 | E11: 11.02482206 | K11: 4 | L11: 238.5809897 | M11: 200.9344182 | N11: 47.71619794 | O11: 40.18688363 | P11: 21 | Q11: 59 | R11: 49 | S11: 11.8 | T11: 9.8
A12: 20 | B12: 15.13513514 | C12: 10.27027027 | D12: 9.079265228 | E12: 6.160929976 | K12: 5 | L12: 236.8928871 | M12: 199.2463155 | N12: 47.37857741 | O12: 39.8492631 | P12: 28 | Q12: 34 | R12: 24 | S12: 6.8 | T12: 4.8
K13: 6 | L13: 182.3370495 | M13: 144.6904779 | N13: 36.46740989 | O13: 28.93809558
K14: 7 | L14: 166.6358123 | M14: 128.9892407 | N14: 33.32716245 | O14: 25.79784814
K15: 8 | L15: 148.4008522 | M15: 110.7542807 | N15: 29.68017044 | O15: 22.15085613
K16: 9 | L16: 118.0448132 | M16: 80.39824161 | N16: 23.60896263 | O16: 16.07964832
K17: 10 | L17: 97.88955792 | M17: 60.24298637 | N17: 19.57791158 | O17: 12.04859727
K18: 11 | L18: 86.64704535 | M18: 49.0004738 | N18: 17.32940907 | O18: 9.80009476
K19: 12 | L19: 72.86139673 | M19: 35.21482518 | N19: 14.57227935 | O19: 7.042965036
K20: 13 | L20: 57.16486613 | M20: 19.51829458 | N20: 11.43297323 | O20: 3.903658915
K21: 14 | L21: 46.57343403 | M21: 8.926862482 | N21: 9.314686807 | O21: 1.785372496

Sheet EC susp
A1: Fotherby (1982) | F1: Aedo (1985) | K1: Garza-Flores (1987/1994a) [Bangkok, Thailand full-dose/5 mg] | P1: Garza-Flores (1987/1994b) [Mexico City, Mexico full-dose/5 mg] | U1: Garza-Flores (1987/1994c) [Mexico Szeged, Hungary full-dose/5 mg] | Z1: Garza-Flores (1987d) [Bangkok, Thailand half-dose/2.5 mg] | AE1: Garza-Flores (1987e) [Mexico City, Mexico half-dose/2.5 mg] | AJ1: Garza-Flores (1987f) [Mexico Szeged, Hungary half-dose/2.5 mg] | AO1: Zhou (1998) | AT1: Rahimy (1999) | AY1: Sierra-Ramirez (2011a) [i.m.] | BD1: Sierra-Ramirez (2011b) [s.c.] | BI1: Thurman (2013)
A2: n | B2: 11 | F2: n | G2: 8 | K2: n | L2: 7 | P2: n | Q2: 8 | U2: n | V2: 7 | Z2: n | AA2: 8 | AE2: n | AF2: 8 | AJ2: n | AK2: 6 | AO2: n | AP2: 9 | AT2: n | AU2: 14 | AY2: n | AZ2: 15 | BD2: n | BE2: 15 | BI2: n | BJ2: 15
A3: Dose | B3: 5 | F3: Dose | G3: 5 | K3: Dose | L3: 5 | P3: Dose | Q3: 5 | U3: Dose | V3: 5 | Z3: Dose | AA3: 2.5 | AE3: Dose | AF3: 2.5 | AJ3: Dose | AK3: 2.5 | AO3: Dose | AP3: 5 | AT3: Dose | AU3: 5 | AY3: Dose | AZ3: 5 | BD3: Dose | BE3: 5 | BI3: Dose | BJ3: 5
A4: Dose units | B4: mg | F4: Dose units | G4: mg | K4: Dose units | L4: mg | P4: Dose units | Q4: mg | U4: Dose units | V4: mg | Z4: Dose units | AA4: mg | AE4: Dose units | AF4: mg | AJ4: Dose units | AK4: mg | AO4: Dose units | AP4: mg | AT4: Dose units | AU4: mg | AY4: Dose units | AZ4: mg | BD4: Dose units | BE4: mg | BI4: Dose units | BJ4: mg
A5: Concentrations | F5: Concentrations | K5: Concentrations | P5: Concentrations | U5: Concentrations | Z5: Concentrations | AE5: Concentrations | AJ5: Concentrations | AO5: Concentrations | AT5: Concentrations | AY5: Concentrations | BD5: Concentrations | BI5: Concentrations
A6: Time | B6: Original | C6: Baseline-adjusted | D6: Dose-normalized | E6: Both | F6: Time | G6: Original | H6: Baseline-adjusted | I6: Dose-normalized | J6: Both | K6: Time | L6: Original | M6: Baseline-adjusted | N6: Dose-normalized | O6: Both | P6: Time | Q6: Original | R6: Baseline-adjusted | S6: Dose-normalized | T6: Both | U6: Time | V6: Original | W6: Baseline-adjusted | X6: Dose-normalized | Y6: Both | Z6: Time | AA6: Original | AB6: Baseline-adjusted | AC6: Dose-normalized | AD6: Both | AE6: Time | AF6: Original | AG6: Baseline-adjusted | AH6: Dose-normalized | AI6: Both | AJ6: Time | AK6: Original | AL6: Baseline-adjusted | AM6: Dose-normalized | AN6: Both | AO6: Time | AP6: Original | AQ6: Baseline-adjusted | AR6: Dose-normalized | AS6: Both | AT6: Time | AU6: Original | AV6: Baseline-adjusted | AW6: Dose-normalized | AX6: Both | AY6: Time | AZ6: Original | BA6: Baseline-adjusted | BB6: Dose-normalized | BC6: Both | BD6: Time | BE6: Original | BF6: Baseline-adjusted | BG6: Dose-normalized | BH6: Both | BI6: Time | BJ6: Original | BK6: Baseline-adjusted | BL6: Dose-normalized | BM6: Both
A7: 0 | B7: 79.07513395 | C7: =IF(ISBLANK(B7), "", MAX(0,B7-B$7)) -> 0 | D7: =IF(ISBLANK(B7), "", B7/B$3) -> 15.81502679 | E7: =IF(ISBLANK(B7), "", MAX(0, (B7-B$7)/B$3)) -> 0 | F7: 0 | G7: 66.00236062 | H7: =IF(ISBLANK(G7), "", MAX(0,G7-G$7)) -> 0 | I7: =IF(ISBLANK(G7), "", G7/G$3) -> 13.20047212 | J7: =IF(ISBLANK(G7), "", MAX(0, (G7-G$7)/G$3)) -> 0 | K7: 0 | L7: 40 | M7: =IF(ISBLANK(L7), "", MAX(0,L7-L$7)) -> 0 | N7: =IF(ISBLANK(L7), "", L7/L$3) -> 8 | O7: =IF(ISBLANK(L7), "", MAX(0, (L7-L$7)/L$3)) -> 0 | P7: 0 | Q7: 40 | R7: =IF(ISBLANK(Q7), "", MAX(0,Q7-Q$7)) -> 0 | S7: =IF(ISBLANK(Q7), "", Q7/Q$3) -> 8 | T7: =IF(ISBLANK(Q7), "", MAX(0, (Q7-Q$7)/Q$3)) -> 0 | U7: 0 | V7: 40 | W7: =IF(ISBLANK(V7), "", MAX(0,V7-V$7)) -> 0 | X7: =IF(ISBLANK(V7), "", V7/V$3) -> 8 | Y7: =IF(ISBLANK(V7), "", MAX(0, (V7-V$7)/V$3)) -> 0 | Z7: 0 | AA7: 40 | AB7: =IF(ISBLANK(AA7), "", MAX(0,AA7-AA$7)) -> 0 | AC7: =IF(ISBLANK(AA7), "", AA7/AA$3) -> 16 | AD7: =IF(ISBLANK(AA7), "", MAX(0, (AA7-AA$7)/AA$3)) -> 0 | AE7: 0 | AF7: 40 | AG7: =IF(ISBLANK(AF7), "", MAX(0,AF7-AF$7)) -> 0 | AH7: =IF(ISBLANK(AF7), "", AF7/AF$3) -> 16 | AI7: =IF(ISBLANK(AF7), "", MAX(0, (AF7-AF$7)/AF$3)) -> 0 | AJ7: 0 | AK7: 40 | AL7: =IF(ISBLANK(AK7), "", MAX(0,AK7-AK$7)) -> 0 | AM7: =IF(ISBLANK(AK7), "", AK7/AK$3) -> 16 | AN7: =IF(ISBLANK(AK7), "", MAX(0, (AK7-AK$7)/AK$3)) -> 0 | AO7: 0 | AP7: 78.82982016 | AQ7: =IF(ISBLANK(AP7), "", MAX(0,AP7-AP$7)) -> 0 | AR7: =IF(ISBLANK(AP7), "", AP7/AP$3) -> 15.76596403 | AS7: =IF(ISBLANK(AP7), "", MAX(0, (AP7-AP$7)/AP$3)) -> 0 | AT7: 0 | AU7: 42.04573031 | AV7: =IF(ISBLANK(AU7), "", MAX(0,AU7-AU$7)) -> 0 | AW7: =IF(ISBLANK(AU7), "", AU7/AU$3) -> 8.409146061 | AX7: =IF(ISBLANK(AU7), "", MAX(0, (AU7-AU$7)/AU$3)) -> 0 | AY7: 0 | AZ7: 36.06807702 | BA7: =IF(ISBLANK(AZ7), "", MAX(0,AZ7-AZ$7)) -> 0 | BB7: =IF(ISBLANK(AZ7), "", AZ7/AZ$3) -> 7.213615405 | BC7: =IF(ISBLANK(AZ7), "", MAX(0, (AZ7-AZ$7)/AZ$3)) -> 0 | BD7: 0 | BE7: 41.80292627 | BF7: =IF(ISBLANK(BE7), "", MAX(0,BE7-BE$7)) -> 0 | BG7: =IF(ISBLANK(BE7), "", BE7/BE$3) -> 8.360585254 | BH7: =IF(ISBLANK(BE7), "", MAX(0, (BE7-BE$7)/BE$3)) -> 0 | BI7: 0 | BJ7: 50.77562813 | BK7: =IF(ISBLANK(BJ7), "", MAX(0,BJ7-BJ$7)) -> 0 | BL7: =IF(ISBLANK(BJ7), "", BJ7/BJ$3) -> 10.15512563 | BM7: =IF(ISBLANK(BJ7), "", MAX(0, (BJ7-BJ$7)/BJ$3)) -> 0
A8: 1 | B8: 372.2308755 | C8: 293.1557415 | D8: 74.44617509 | E8: 58.6311483 | F8: 1 | G8: 174.8372997 | H8: 108.8349391 | I8: 34.96745994 | J8: 21.76698782 | K8: 2 | L8: 736 | M8: 696 | N8: 147.2 | O8: 139.2 | P8: 3 | Q8: 184 | R8: 144 | S8: 36.8 | T8: 28.8 | U8: 3 | V8: 202 | W8: 162 | X8: 40.4 | Y8: 32.4 | Z8: 2 | AA8: 303 | AB8: 263 | AC8: 121.2 | AD8: 105.2 | AE8: 3 | AF8: 146 | AG8: 106 | AH8: 58.4 | AI8: 42.4 | AJ8: 4 | AK8: 94.8 | AL8: 54.8 | AM8: 37.92 | AN8: 21.92 | AO8: 1 | AP8: 322.3513731 | AQ8: 243.5215529 | AR8: 64.47027462 | AS8: 48.70431059 | AT8: 1 | AU8: 214.7910801 | AV8: 172.7453498 | AW8: 42.95821602 | AX8: 34.54906996 | AY8: 1 | AZ8: 337.578884 | BA8: 301.5108069 | BB8: 67.51577679 | BC8: 60.30216139 | BD8: 1 | BE8: 350.6859745 | BF8: 308.8830483 | BG8: 70.13719491 | BH8: 61.77660965 | BI8: 1 | BJ8: 231.1868534 | BK8: 180.4112253 | BL8: 46.23737068 | BM8: 36.08224505
A9: 3 | B9: 193.8613279 | C9: 114.786194 | D9: 38.77226559 | E9: 22.9572388 | F9: 2 | G9: 208.0432195 | H9: 142.0408589 | I9: 41.6086439 | J9: 28.40817178 | AO9: 3 | AP9: 271.1274302 | AQ9: 192.29761 | AR9: 54.22548604 | AS9: 38.45952201 | AT9: 3 | AU9: 182.1640024 | AV9: 140.1182721 | AW9: 36.43280048 | AX9: 28.02365442 | AY9: 2 | AZ9: 287.6242223 | BA9: 251.5561453 | BB9: 57.52484446 | BC9: 50.31122906 | BD9: 2 | BE9: 325.3092382 | BF9: 283.5063119 | BG9: 65.06184764 | BH9: 56.70126239 | BI9: 3 | BJ9: 189.7018026 | BK9: 138.9261745 | BL9: 37.94036053 | BM9: 27.7852349
A10: 4 | B10: 271.0989509 | C10: 192.023817 | D10: 54.21979018 | E10: 38.40476339 | F10: 3 | G10: 220.2122555 | H10: 154.2098949 | I10: 44.0424511 | J10: 30.84197898 | AO10: 5 | AP10: 277.4284133 | AQ10: 198.5985931 | AR10: 55.48568266 | AS10: 39.71971863 | AT10: 5 | AU10: 168.045801 | AV10: 126.0000707 | AW10: 33.6091602 | AX10: 25.20001414 | AY10: 3 | AZ10: 267.9823352 | BA10: 231.9142582 | BB10: 53.59646705 | BC10: 46.38285164 | BD10: 3 | BE10: 297.4747094 | BF10: 255.6717831 | BG10: 59.49494187 | BH10: 51.13435662 | BI10: 5 | BJ10: 207.3610472 | BK10: 156.585419 | BL10: 41.47220943 | BM10: 31.31708381
A11: 7 | B11: 153.1237981 | C11: 74.04866418 | D11: 30.62475963 | E11: 14.80973284 | F11: 4 | G11: 248.0529215 | H11: 182.0505609 | I11: 49.6105843 | J11: 36.41011218 | AO11: 7 | AP11: 231.6828234 | AQ11: 152.8530032 | AR11: 46.33656468 | AS11: 30.57060065 | AT11: 7 | AU11: 152.4350623 | AV11: 110.389332 | AW11: 30.48701245 | AX11: 22.07786639 | AY11: 4 | AZ11: 238.509278 | BA11: 202.441201 | BB11: 47.70185561 | BC11: 40.4882402 | BD11: 4 | BE11: 268.0027884 | BF11: 226.1998622 | BG11: 53.60055769 | BH11: 45.23997243 | BI11: 7 | BJ11: 197.7554939 | BK11: 146.9798658 | BL11: 39.55109878 | BM11: 29.39597315
A12: 8 | B12: 191.0359719 | C12: 111.9608379 | D12: 38.20719437 | E12: 22.39216758 | F12: 5 | G12: 148.1609816 | H12: 82.15862098 | I12: 29.63219632 | J12: 16.4317242 | AO12: 14 | AP12: 158.0878645 | AQ12: 79.25804434 | AR12: 31.6175729 | AS12: 15.85160887 | AT12: 10 | AU12: 119.8079845 | AV12: 77.76225424 | AW12: 23.96159691 | AX12: 15.55245085 | AY12: 5 | AZ12: 219.6855189 | BA12: 183.6174418 | BB12: 43.93710377 | BC12: 36.72348837 | BD12: 5 | BE12: 246.7212367 | BF12: 204.9183105 | BG12: 49.34424734 | BH12: 40.98366209 | BI12: 10 | BJ12: 165.4989339 | BK12: 114.7233058 | BL12: 33.09978679 | BM12: 22.94466116
A13: 10 | B13: 116.6487765 | C13: 37.5736426 | D13: 23.32975531 | E13: 7.514728519 | F13: 6 | G13: 213.9871738 | H13: 147.9848132 | I13: 42.79743476 | J13: 29.59696264 | AO13: 21 | AP13: 119.493788 | AQ13: 40.66396784 | AR13: 23.8987576 | AS13: 8.132793568 | AT13: 12 | AU13: 96.13613071 | AV13: 54.09040041 | AW13: 19.22722614 | AX13: 10.81808008 | AY13: 6 | AZ13: 195.9484472 | BA13: 159.8803702 | BB13: 39.18968944 | BC13: 31.97607403 | BD13: 6 | BE13: 222.1649009 | BF13: 180.3619746 | BG13: 44.43298017 | BH13: 36.07239492 | BI13: 12 | BJ13: 124.0138832 | BK13: 73.23825503 | BL13: 24.80277663 | BM13: 14.64765101
A14: 11 | B14: 125.9401124 | C14: 46.8649784 | D14: 25.18802247 | E14: 9.372995681 | F14: 7 | G14: 195.1927262 | H14: 129.1903656 | I14: 39.03854524 | J14: 25.83807312 | AO14: 28 | AP14: 93.22711537 | AQ14: 14.39729521 | AR14: 18.64542307 | AS14: 2.879459042 | AT14: 14 | AU14: 79.62845598 | AV14: 37.58272568 | AW14: 15.9256912 | AX14: 7.516545135 | AY14: 7 | AZ14: 167.2935179 | BA14: 131.2254408 | BB14: 33.45870357 | BC14: 26.24508817 | BD14: 7 | BE14: 179.5824805 | BF14: 137.7795543 | BG14: 35.91649611 | BH14: 27.55591085 | BI14: 14 | BJ14: 99.3073559 | BK14: 48.53172776 | BL14: 19.86147118 | BM14: 9.706345553
A15: 14 | B15: 79.72630396 | C15: 0.651170014 | D15: 15.94526079 | E15: 0.1302340028 | F15: 8 | G15: 170.7381568 | H15: 104.7357962 | I15: 34.14763136 | J15: 20.94715924 | AT15: 18 | AU15: 57.150632 | AV15: 15.1049017 | AW15: 11.4301264 | AX15: 3.020980339 | AY15: 8 | AZ15: 153.38648 | BA15: 117.318403 | BB15: 30.67729601 | BC15: 23.4636806 | BD15: 8 | BE15: 139.458989 | BF15: 97.65606275 | BG15: 27.8917978 | BH15: 19.53121255 | BI15: 18 | BJ15: 77.53707024 | BK15: 26.76144211 | BL15: 15.50741405 | BM15: 5.352288421
A16: 15 | B16: 79.82831572 | C16: 0.7531817773 | D16: 15.96566314 | E16: 0.1506363555 | F16: 9 | G16: 147.1780156 | H16: 81.17565498 | I16: 29.43560312 | J16: 16.235131 | AT16: 21 | AU16: 45.41907668 | AV16: 3.37334637 | AW16: 9.083815335 | AX16: 0.674669274 | AY16: 9 | AZ16: 143.5757631 | BA16: 107.5076861 | BB16: 28.71515262 | BC16: 21.50153722 | BD16: 9 | BE16: 202.5627839 | BF16: 160.7598576 | BG16: 40.51255678 | BH16: 32.15197153 | BI16: 21 | BJ16: 55.76708744 | BK16: 4.991459308 | BL16: 11.15341749 | BM16: 0.9982918615
A17: 17 | B17: 89.62905782 | C17: 10.55392387 | D17: 17.92581156 | E17: 2.110784775 | F17: 10 | G17: 128.9402531 | H17: 62.93789248 | I17: 25.78805062 | J17: 12.5875785 | AT17: 28 | AU17: 42.64203843 | AV17: 0.59630812 | AW17: 8.528407685 | AX17: 0.119261624 | AY17: 10 | AZ17: 85.42845967 | BA17: 49.36038265 | BB17: 17.08569193 | BC17: 9.872076529 | BD17: 10 | BE17: 114.9231064 | BF17: 73.12018009 | BG17: 22.98462127 | BH17: 14.62403602 | BI17: 28 | BJ17: 41.54713735 | BK17: 0 | BL17: 8.309427471 | BM17: 0
A18: 18 | B18: 79.07513395 | C18: 0 | D18: 15.81502679 | E18: 0 | F18: 11 | G18: 92.20617706 | H18: 26.20381644 | I18: 18.44123541 | J18: 5.240763288 | AY18: 11 | AZ18: 111.6653666 | BA18: 75.59728953 | BB18: 22.33307331 | BC18: 15.11945791 | BD18: 11 | BE18: 114.9424233 | BF18: 73.139497 | BG18: 22.98848465 | BH18: 14.6278994
F19: 12 | G19: 48.15097207 | H19: 0 | I19: 9.630194414 | J19: 0 | AY19: 12 | AZ19: 68.26481833 | BA19: 32.1967413 | BB19: 13.65296367 | BC19: 6.439348261 | BD19: 12 | BE19: 91.2053516 | BF19: 49.40242533 | BG19: 18.24107032 | BH19: 9.880485066
F20: 13 | G20: 122.8175139 | H20: 56.81515328 | I20: 24.56350278 | J20: 11.36303066 | AY20: 13 | AZ20: 68.28527153 | BA20: 32.2171945 | BB20: 13.65705431 | BC20: 6.4434389 | BD20: 13 | BE20: 68.28640781 | BF20: 26.48348154 | BG20: 13.65728156 | BH20: 5.296696309
F21: 14 | G21: 59.17891522 | H21: 0 | I21: 11.83578304 | J21: 0 | AY21: 14 | AZ21: 68.30572472 | BA21: 32.2376477 | BB21: 13.66114494 | BC21: 6.44752954 | BD21: 14 | BE21: 91.2451217 | BF21: 49.44219543 | BG21: 18.24902434 | BH21: 9.888439087
F22: 15 | G22: 68.82404412 | H22: 2.8216835 | I22: 13.76480882 | J22: 0.5643367 | AY22: 15 | AZ22: 56.85647943 | BA22: 20.78840241 | BB22: 11.37129589 | BC22: 4.157680481 | BD22: 15 | BE22: 58.49500779 | BF22: 16.69208152 | BG22: 11.69900156 | BH22: 3.338416303
F23: 16 | G23: 102.4915222 | H23: 36.48916158 | I23: 20.49830444 | J23: 7.297832316 | AY23: 16 | AZ23: 52.78061174 | BA23: 16.71253471 | BB23: 10.55612235 | BC23: 3.342506943 | BD23: 16 | BE23: 74.90074454 | BF23: 33.09781827 | BG23: 14.98014891 | BH23: 6.619563654
F24: 17 | G24: 64.19868462 | H24: 0 | I24: 12.83973692 | J24: 0 | AY24: 17 | AZ24: 41.33250273 | BA24: 5.264425709 | BB24: 8.266500547 | BC24: 1.052885142 | BD24: 17 | BE24: 51.98293705 | BF24: 10.18001078 | BG24: 10.39658741 | BH24: 2.036002155
F25: 18 | G25: 74.10057052 | H25: 8.0982099 | I25: 14.8201141 | J25: 1.61964198 | AY25: 18 | AZ25: 42.99148429 | BA25: 6.923407262 | BB25: 8.598296857 | BC25: 1.384681452 | BD25: 18 | BE25: 53.64078231 | BF25: 11.83785604 | BG25: 10.72815646 | BH25: 2.367571208
F26: 19 | G26: 48.12310263 | H26: 0 | I26: 9.624620526 | J26: 0 | AY26: 19 | AZ26: 44.65046584 | BA26: 8.582388815 | BB26: 8.930093168 | BC26: 1.716477763 | BD26: 19 | BE26: 46.28785791 | BF26: 4.484931637 | BG26: 9.257571581 | BH26: 0.8969863273
F27: 20 | G27: 64.31695853 | H27: 0 | I27: 12.86339171 | J27: 0 | AY27: 20 | AZ27: 30.74229172 | BA27: 0 | BB27: 6.148458345 | BC27: 0 | BD27: 20 | BE27: 37.29640515 | BF27: 0 | BG27: 7.459281029 | BH27: 0
F28: 21 | G28: 32.59491605 | H28: 0 | I28: 6.51898321 | J28: 0 | AY28: 21 | AZ28: 35.67946628 | BA28: 0 | BB28: 7.135893255 | BC28: 0 | BD28: 21 | BE28: 43.05170759 | BF28: 1.24878132 | BG28: 8.610341518 | BH28: 0.2497562639
F29: 22 | G29: 73.09518578 | H29: 7.09282516 | I29: 14.61903716 | J29: 1.418565032 | AY29: 22 | AZ29: 31.60359858 | BA29: 0 | BB29: 6.320719717 | BC29: 0 | BD29: 22 | BE29: 36.51918365 | BF29: 0 | BG29: 7.30383673 | BH29: 0
F30: 23 | G30: 56.85285427 | H30: 0 | I30: 11.37057085 | J30: 0 | AY30: 23 | AZ30: 39.81669356 | BA30: 3.748616537 | BB30: 7.963338712 | BC30: 0.7497233073 | BD30: 23 | BE30: 36.53850056 | BF30: 0 | BG30: 7.307700112 | BH30: 0
F31: 24 | G31: 80.72402628 | H31: 14.72166566 | I31: 16.14480526 | J31: 2.944333132 | AY31: 24 | AZ31: 30.00597662 | BA31: 0 | BB31: 6.001195325 | BC31: 0 | BD31: 24 | BE31: 37.37821794 | BF31: 0 | BG31: 7.475643587 | BH31: 0
F32: 25 | G32: 74.81480318 | H32: 8.81244256 | I32: 14.96296064 | J32: 1.762488512 | AY32: 25 | AZ32: 34.12275071 | BA32: 0 | BB32: 6.824550142 | BC32: 0 | BD32: 25 | BE32: 49.68877009 | BF32: 7.88584382 | BG32: 9.937754018 | BH32: 1.577168764
F33: 26 | G33: 110.9290262 | H33: 44.92666558 | I33: 22.18580524 | J33: 8.985333116 | AY33: 26 | AZ33: 34.96246808 | BA33: 0 | BB33: 6.992493617 | BC33: 0 | BD33: 26 | BE33: 42.33584569 | BF33: 0.5329194167 | BG33: 8.467169137 | BH33: 0.1065838833
F34: 27 | G34: 62.99815844 | H34: 0 | I34: 12.59963169 | J34: 0 | AY34: 27 | AZ34: 25.97101533 | BA34: 0 | BB34: 5.194203065 | BC34: 0 | BD34: 27 | BE34: 48.09114813 | BF34: 6.288221859 | BG34: 9.618229626 | BH34: 1.257644372
F35: 28 | G35: 184.6039751 | H35: 118.6016145 | I35: 36.92079502 | J35: 23.7203229 | AY35: 28 | AZ35: 44.83454461 | BA35: 8.76646759 | BB35: 8.966908923 | BC35: 1.753293518 | BD35: 28 | BE35: 43.19601626 | BF35: 1.393089989 | BG35: 8.639203252 | BH35: 0.2786179978
F36: 29 | G36: 118.9493977 | H36: 52.94703708 | I36: 23.78987954 | J36: 10.58940742 | AY36: 29 | AZ36: 34.2045635 | BA36: 0 | BB36: 6.8409127 | BC36: 0 | BD36: 29 | BE36: 58.78248883 | BF36: 16.97956257 | BG36: 11.75649777 | BH36: 3.395912513
F37: 30 | G37: 46.32887592 | H37: 0 | I37: 9.265775184 | J37: 0 | AY37: 30 | AZ37: 47.33324354 | BA37: 11.26516652 | BB37: 9.466648708 | BC37: 2.253033304 | BD37: 30 | BE37: 44.05618683 | BF37: 2.253260561 | BG37: 8.811237366 | BH37: 0.4506521123

Sheet EEn
A1: Recio (1986) 5 mg [n=1] | F1: Recio (1986) 10 mg [n=1] | K1: Wiemeyer (1986) | P1: Schiavon (1988) | U1: Garza-Flores (1989) | Z1: Garza-Flores (1994) idealized | AE1: Garza-Flores (1994a) / Recio (1986) [Group I] | AJ1: Garza-Flores (1994b) / Recio (1986) [Group II] | AO1: Garza-Flores (1994c) | AT1: Martinez (1995)
A2: n | B2: 1 | F2: n | G2: 1 | K2: n | L2: 3 | P2: n | Q2: 14 | U2: n | V2: 10 | Z2: n | AA2: ? | AE2: n | AF2: 9 | AJ2: n | AK2: 7–9 | AO2: n | AP2: 7 | AT2: n | AU2: 216
A3: Dose | B3: 5 | F3: Dose | G3: 10 | K3: Dose | L3: 10 | P3: Dose | Q3: 10 | U3: Dose | V3: 10 | Z3: Dose | AA3: 10 | AE3: Dose | AF3: 10 | AJ3: Dose | AK3: 5 | AO3: Dose | AP3: 10 | AT3: Dose | AU3: 10
A4: Dose units | B4: mg | F4: Dose units | G4: mg | K4: Dose units | L4: mg | P4: Dose units | Q4: mg | U4: Dose units | V4: mg | Z4: Dose units | AA4: mg | AE4: Dose units | AF4: mg | AJ4: Dose units | AK4: mg | AO4: Dose units | AP4: mg | AT4: Dose units | AU4: mg
A5: Concentrations | F5: Concentrations | K5: Concentrations | P5: Concentrations | U5: Concentrations | Z5: Concentrations | AE5: Concentrations | AJ5: Concentrations | AO5: Concentrations | AT5: Concentrations
A6: Time | B6: Original | C6: Baseline-adjusted | D6: Dose-normalized | E6: Both | F6: Time | G6: Original | H6: Baseline-adjusted | I6: Dose-normalized | J6: Both | K6: Time | L6: Original | M6: Baseline-adjusted | N6: Dose-normalized | O6: Both | P6: Time | Q6: Original | R6: Baseline-adjusted | S6: Dose-normalized | T6: Both | U6: Time | V6: Original | W6: Baseline-adjusted | X6: Dose-normalized | Y6: Both | Z6: Time | AA6: Original | AB6: Baseline-adjusted | AC6: Dose-normalized | AD6: Both | AE6: Time | AF6: Original | AG6: Baseline-adjusted | AH6: Dose-normalized | AI6: Both | AJ6: Time | AK6: Original | AL6: Baseline-adjusted | AM6: Dose-normalized | AN6: Both | AO6: Time | AP6: Original | AQ6: Baseline-adjusted | AR6: Dose-normalized | AS6: Both | AT6: Time | AU6: Original | AV6: Baseline-adjusted | AW6: Dose-normalized | AX6: Both
A7: 0 | B7: 57.9080633 | C7: =IF(ISBLANK(B7), "", MAX(0,B7-B$7)) -> 0 | D7: =IF(ISBLANK(B7), "", B7/B$3) -> 11.58161266 | E7: =IF(ISBLANK(B7), "", MAX(0, (B7-B$7)/B$3)) -> 0 | F7: 0 | G7: 28.86205295 | H7: =IF(ISBLANK(G7), "", MAX(0,G7-G$7)) -> 0 | I7: =IF(ISBLANK(G7), "", G7/G$3) -> 2.886205295 | J7: =IF(ISBLANK(G7), "", MAX(0, (G7-G$7)/G$3)) -> 0 | K7: 0 | L7: 18.83 | M7: =IF(ISBLANK(L7), "", MAX(0,L7-L$7)) -> 0 | N7: =IF(ISBLANK(L7), "", L7/L$3) -> 1.883 | O7: =IF(ISBLANK(L7), "", MAX(0, (L7-L$7)/L$3)) -> 0 | P7: 0 | Q7: 43 | R7: =IF(ISBLANK(Q7), "", MAX(0,Q7-Q$7)) -> 0 | S7: =IF(ISBLANK(Q7), "", Q7/Q$3) -> 4.3 | T7: =IF(ISBLANK(Q7), "", MAX(0, (Q7-Q$7)/Q$3)) -> 0 | U7: 0 | V7: 69.70262016 | W7: =IF(ISBLANK(V7), "", MAX(0,V7-V$7)) -> 0 | X7: =IF(ISBLANK(V7), "", V7/V$3) -> 6.970262016 | Y7: =IF(ISBLANK(V7), "", MAX(0, (V7-V$7)/V$3)) -> 0 | Z7: 0 | AA7: 28.64163668 | AB7: =IF(ISBLANK(AA7), "", MAX(0,AA7-AA$7)) -> 0 | AC7: =IF(ISBLANK(AA7), "", AA7/AA$3) -> 2.864163668 | AD7: =IF(ISBLANK(AA7), "", MAX(0, (AA7-AA$7)/AA$3)) -> 0 | AE7: 0 | AF7: 39 | AG7: =IF(ISBLANK(AF7), "", MAX(0,AF7-AF$7)) -> 0 | AH7: =IF(ISBLANK(AF7), "", AF7/AF$3) -> 3.9 | AI7: =IF(ISBLANK(AF7), "", MAX(0, (AF7-AF$7)/AF$3)) -> 0 | AJ7: 0 | AK7: 35 | AL7: =IF(ISBLANK(AK7), "", MAX(0,AK7-AK$7)) -> 0 | AM7: =IF(ISBLANK(AK7), "", AK7/AK$3) -> 7 | AN7: =IF(ISBLANK(AK7), "", MAX(0, (AK7-AK$7)/AK$3)) -> 0 | AO7: 0 | AP7: 29 | AQ7: =IF(ISBLANK(AP7), "", MAX(0,AP7-AP$7)) -> 0 | AR7: =IF(ISBLANK(AP7), "", AP7/AP$3) -> 2.9 | AS7: =IF(ISBLANK(AP7), "", MAX(0, (AP7-AP$7)/AP$3)) -> 0 | AT7: 0 | AU7: 109 | AV7: =IF(ISBLANK(AU7), "", MAX(0,AU7-AU$7)) -> 0 | AW7: =IF(ISBLANK(AU7), "", AU7/AU$3) -> 10.9 | AX7: =IF(ISBLANK(AU7), "", MAX(0, (AU7-AU$7)/AU$3)) -> 0
A8: 2 | B8: 129.4920874 | C8: 71.58402411 | D8: 25.89841748 | E8: 14.31680482 | F8: 2 | G8: 47.04598235 | H8: 18.1839294 | I8: 4.704598235 | J8: 1.81839294 | K8: 1 | L8: 441.67 | M8: 422.84 | N8: 44.167 | O8: 42.284 | P8: 5.25 | Q8: 289.5 | R8: 246.5 | S8: 28.95 | T8: 24.65 | U8: 10 | V8: 267.1660505 | W8: 197.4634303 | X8: 26.71660505 | Y8: 19.74634303 | Z8: 8 | AA8: 315.3015923 | AB8: 286.6599556 | AC8: 31.53015923 | AD8: 28.66599556 | AE8: 8.1 | AF8: 317 | AG8: 278 | AH8: 31.7 | AI8: 27.8 | AJ8: 6.5 | AK8: 148 | AL8: 113 | AM8: 29.6 | AN8: 22.6 | AO8: 4.2 | AP8: 314 | AQ8: 285 | AR8: 31.4 | AS8: 28.5 | AT8: 7 | AU8: 439 | AV8: 330 | AW8: 43.9 | AX8: 33
A9: 7 | B9: 206.3059533 | C9: 148.39789 | D9: 41.26119066 | E9: 29.679578 | F9: 3 | G9: 176.2099396 | H9: 147.3478867 | I9: 17.62099396 | J9: 14.73478867 | K9: 2 | L9: 598.33 | M9: 579.5 | N9: 59.833 | O9: 57.95 | P9: 30 | Q9: 56.5 | R9: 13.5 | S9: 5.65 | T9: 1.35 | U9: 20 | V9: 149.4518566 | W9: 79.74923646 | X9: 14.94518566 | Y9: 7.974923646 | Z9: 20 | AA9: 55.44574762 | AB9: 26.80411094 | AC9: 5.544574762 | AD9: 2.680411094 | AE9: 30 | AF9: 39 | AG9: 0 | AH9: 3.9 | AI9: 0 | AO9: 30 | AP9: 29 | AQ9: 0 | AR9: 2.9 | AS9: 0 | AT9: 30 | AU9: 130 | AV9: 21 | AW9: 13 | AX9: 2.1
A10: 8 | B10: 202.1883949 | C10: 144.2803316 | D10: 40.43767898 | E10: 28.85606631 | F10: 5 | G10: 404.3520669 | H10: 375.4900139 | I10: 40.43520669 | J10: 37.54900139 | K10: 3 | L10: 850 | M10: 831.17 | N10: 85 | O10: 83.117 | U10: 30 | V10: 86.32052725 | W10: 16.61790709 | X10: 8.632052725 | Y10: 1.661790709 | Z10: 30 | AA10: 28.64163668 | AB10: 0 | AC10: 2.864163668 | AD10: 0
A11: 9 | B11: 227.1710625 | C11: 169.2629992 | D11: 45.43421251 | E11: 33.85259985 | F11: 10 | G11: 174.5610776 | H11: 145.6990246 | I11: 17.45610776 | J11: 14.56990246 | K11: 6 | L11: 726.67 | M11: 707.84 | N11: 72.667 | O11: 70.784
A12: 11 | B12: 191.0293896 | C12: 133.1213263 | D12: 38.20587792 | E12: 26.62426526 | F12: 15 | G12: 122.9168602 | H12: 94.05480725 | I12: 12.29168602 | J12: 9.405480725 | K12: 8 | L12: 413.33 | M12: 394.5 | N12: 41.333 | O12: 39.45
A13: 13 | B13: 126.9781462 | C13: 69.07008289 | D13: 25.39562924 | E13: 13.81401658 | F13: 17 | G13: 156.6093823 | H13: 127.7473293 | I13: 15.66093823 | J13: 12.77473293 | K13: 10 | L13: 546.67 | M13: 527.84 | N13: 54.667 | O13: 52.784
A14: 17 | B14: 65.38357197 | C14: 7.475508666 | D14: 13.07671439 | E14: 1.495101733 | F14: 18 | G14: 139.0292615 | H14: 110.1672085 | I14: 13.90292615 | J14: 11.01672085 | K14: 13 | L14: 430 | M14: 411.17 | N14: 43 | O14: 41.117
A15: 21 | B15: 81.57950264 | C15: 23.67143934 | D15: 16.31590053 | E15: 4.734287867 | F15: 22 | G15: 80.21365536 | H15: 51.35160242 | I15: 8.021365536 | J15: 5.135160242 | K15: 15 | L15: 205 | M15: 186.17 | N15: 20.5 | O15: 18.617
A16: 23 | B16: 57.9080633 | C16: 0 | D16: 11.58161266 | E16: 0 | F16: 24 | G16: 81.89967487 | H16: 53.03762192 | I16: 8.189967487 | J16: 5.303762192 | K16: 17 | L16: 401.67 | M16: 382.84 | N16: 40.167 | O16: 38.284
A17: 25 | B17: 66.89977393 | C17: 8.991710625 | D17: 13.37995479 | E17: 1.798342125 | F17: 26 | G17: 93.24198792 | H17: 64.37993497 | I17: 9.324198792 | J17: 6.437993497 | K17: 20 | L17: 95.67 | M17: 76.84 | N17: 9.567 | O17: 7.684
A18: 30 | B18: 64.13564431 | C18: 6.22758101 | D18: 12.82712886 | E18: 1.245516202 | F18: 29 | G18: 73.7343242 | H18: 44.87227125 | I18: 7.37343242 | J18: 4.487227125 | K18: 22 | L18: 60.33 | M18: 41.5 | N18: 6.033 | O18: 4.15
A19: 32 | B19: 73.12434062 | C19: 15.21627732 | D19: 14.62486812 | E19: 3.043255463 | F19: 31 | G19: 41.60705992 | H19: 12.74500697 | I19: 4.160705992 | J19: 1.274500697 | K19: 24 | L19: 53 | M19: 34.17 | N19: 5.3 | O19: 3.417
F20: 32 | G20: 28.86205295 | H20: 0 | I20: 2.886205295 | J20: 0 | K20: 27 | L20: 44 | M20: 25.17 | N20: 4.4 | O20: 2.517
K21: 29 | L21: 49.33 | M21: 30.5 | N21: 4.933 | O21: 3.05
K22: 31 | L22: 38.5 | M22: 19.67 | N22: 3.85 | O22: 1.967

Sheet EU
A1: Geppert/Leyendecker (1975) | F1: Vermeulen (1975)
A2: n | B2: 3 | F2: n | G2: 4
A3: Dose | B3: 32.3 | F3: Dose | G3: 100
A4: Dose units | B4: mg | F4: Dose units | G4: mg
A5: Concentrations | F5: Concentrations
A6: Time | B6: Original | C6: Baseline-adjusted | D6: Dose-normalized | E6: Both | F6: Time | G6: Original | H6: Baseline-adjusted | I6: Dose-normalized | J6: Both
A7: 0 | B7: 50.75 | C7: =IF(ISBLANK(B7), "", MAX(0,B7-B$7)) -> 0 | D7: =IF(ISBLANK(B7), "", B7/B$3) -> 1.57120743 | E7: =IF(ISBLANK(B7), "", MAX(0, (B7-B$7)/B$3)) -> 0 | F7: 0 | G7: 20.40553807 | H7: =IF(ISBLANK(G7), "", MAX(0,G7-G$7)) -> 0 | I7: =IF(ISBLANK(G7), "", G7/G$3) -> 0.2040553807 | J7: =IF(ISBLANK(G7), "", MAX(0, (G7-G$7)/G$3)) -> 0
A8: 1 | B8: 122 | C8: 71.25 | D8: 3.777089783 | E8: 2.205882353 | F8: 1 | G8: 500.3351274 | H8: 479.9295894 | I8: 5.003351274 | J8: 4.799295894
A9: 2 | B9: 170 | C9: 119.25 | D9: 5.263157895 | E9: 3.691950464 | F9: 2 | G9: 350.847974 | H9: 330.4424359 | I9: 3.50847974 | J9: 3.304424359
A10: 3 | B10: 382 | C10: 331.25 | D10: 11.82662539 | E10: 10.25541796 | F10: 3 | G10: 260.2755492 | H10: 239.8700112 | I10: 2.602755492 | J10: 2.398700112
A11: 4 | B11: 215 | C11: 164.25 | D11: 6.656346749 | E11: 5.085139319 | F11: 4 | G11: 262.7670018 | H11: 242.3614637 | I11: 2.627670018 | J11: 2.423614637
A12: 5 | B12: 167 | C12: 116.25 | D12: 5.170278638 | E12: 3.599071207 | F12: 5 | G12: 386.0668224 | H12: 365.6612843 | I12: 3.860668224 | J12: 3.656612843
A13: 6 | B13: 132 | C13: 81.25 | D13: 4.086687307 | E13: 2.515479876 | F13: 6 | G13: 289.2522257 | H13: 268.8466877 | I13: 2.892522257 | J13: 2.688466877
A14: 7 | B14: 146 | C14: 95.25 | D14: 4.520123839 | E14: 2.948916409 | F14: 7 | G14: 353.6373176 | H14: 333.2317796 | I14: 3.536373176 | J14: 3.332317796
A15: 8 | B15: 118 | C15: 67.25 | D15: 3.653250774 | E15: 2.082043344 | F15: 8 | G15: 297.2952845 | H15: 276.8897465 | I15: 2.972952845 | J15: 2.768897465
A16: 9 | B16: 163 | C16: 112.25 | D16: 5.046439628 | E16: 3.475232198 | F16: 9 | G16: 324.5116956 | H16: 304.1061575 | I16: 3.245116956 | J16: 3.041061575
A17: 12 | B17: 194 | C17: 143.25 | D17: 6.00619195 | E17: 4.43498452 | F17: 10 | G17: 326.9625267 | H17: 306.5569886 | I17: 3.269625267 | J17: 3.065569886
F18: 11 | G18: 310.8493281 | H18: 290.44379 | I18: 3.108493281 | J18: 2.9044379
F19: 12 | G19: 403.1413967 | H19: 382.7358586 | I19: 4.031413967 | J19: 3.827358586
F20: 13 | G20: 312.5283504 | H20: 292.1228124 | I20: 3.125283504 | J20: 2.921228124
F21: 14 | G21: 339.8260045 | H21: 319.4204665 | I21: 3.398260045 | J21: 3.194204665

Sheet PEP
A1: Jönsson (1976) | F1: Leinonen (1979) | K1: Leinonen (1980) | P1: Jacobi (1982) | U1: Norlén (1987) 80 mg single | Z1: Norlén (1987) 160 mg single | AE1: Norlén (1987) 240 mg single | AJ1: Norlén (1987) 80 mg/month continuous | AO1: Norlén (1987) 160 mg/month continuous | AT1: Norlén (1987) 240 mg/month continuous | AY1: Stege (1988) 160 mg/month | BD1: Stege (1988) 240 mg/month | BI1: Stege (1988) 320 mg/month | BN1: Stege (1996) | BS1: Henriksson (1999)
A2: n | B2: 16 | F2: n | G2: 10 | K2: n | L2: 6 | P2: n | Q2: 4 | U2: n | V2: 3 | Z2: n | AA2: 3 | AE2: n | AF2: 3 | AJ2: n | AK2: 4 | AO2: n | AP2: 4 | AT2: n | AU2: 4 | AY2: n | AZ2: 9 | BD2: n | BE2: 9 | BI2: n | BJ2: 9 | BN2: n | BO2: 11 | BS2: n | BT2: 17
A3: Dose | B3: 160 | F3: Dose | G3: 80 | K3: Dose | L3: 80 | P3: Dose | Q3: 80 | U3: Dose | V3: 80 | Z3: Dose | AA3: 160 | AE3: Dose | AF3: 240 | AJ3: Dose | AK3: 80 | AO3: Dose | AP3: 160 | AT3: Dose | AU3: 240 | AY3: Dose | AZ3: 160 | BD3: Dose | BE3: 240 | BI3: Dose | BJ3: 320 | BN3: Dose | BO3: 320 | BS3: Dose | BT3: 240
A4: Dose units | B4: mg | F4: Dose units | G4: mg | K4: Dose units | L4: mg | P4: Dose units | Q4: mg | U4: Dose units | V4: mg | Z4: Dose units | AA4: mg | AE4: Dose units | AF4: mg | AJ4: Dose units | AK4: mg | AO4: Dose units | AP4: mg | AT4: Dose units | AU4: mg | AY4: Dose units | AZ4: mg | BD4: Dose units | BE4: mg | BI4: Dose units | BJ4: mg | BN4: Dose units | BO4: mg | BS4: Dose units | BT4: mg
A5: Concentrations | F5: Concentrations | K5: Concentrations | P5: Concentrations | U5: Concentrations | Z5: Concentrations | AE5: Concentrations | AJ5: Concentrations | AO5: Concentrations | AT5: Concentrations | AY5: Concentrations | BD5: Concentrations | BI5: Concentrations | BN5: Concentrations | BS5: Concentrations
A6: Time | B6: Original | C6: Baseline-adjusted | D6: Dose-normalized | E6: Both | F6: Time | G6: Original | H6: Baseline-adjusted | I6: Dose-normalized | J6: Both | K6: Time | L6: Original | M6: Baseline-adjusted | N6: Dose-normalized | O6: Both | P6: Time | Q6: Original | R6: Baseline-adjusted | S6: Dose-normalized | T6: Both | U6: Time | V6: Original | W6: Baseline-adjusted | X6: Dose-normalized | Y6: Both | Z6: Time | AA6: Original | AB6: Baseline-adjusted | AC6: Dose-normalized | AD6: Both | AE6: Time | AF6: Original | AG6: Baseline-adjusted | AH6: Dose-normalized | AI6: Both | AJ6: Time | AK6: Original | AL6: Baseline-adjusted | AM6: Dose-normalized | AN6: Both | AO6: Time | AP6: Original | AQ6: Baseline-adjusted | AR6: Dose-normalized | AS6: Both | AT6: Time | AU6: Original | AV6: Baseline-adjusted | AW6: Dose-normalized | AX6: Both | AY6: Time | AZ6: Original | BA6: Baseline-adjusted | BB6: Dose-normalized | BC6: Both | BD6: Time | BE6: Original | BF6: Baseline-adjusted | BG6: Dose-normalized | BH6: Both | BI6: Time | BJ6: Original | BK6: Baseline-adjusted | BL6: Dose-normalized | BM6: Both | BN6: Time | BO6: Original | BP6: Baseline-adjusted | BQ6: Dose-normalized | BR6: Both | BS6: Time | BT6: Original | BU6: Baseline-adjusted | BV6: Dose-normalized | BW6: Both
A7: 0 | B7: 37.12251446 | C7: =IF(ISBLANK(B7), "", MAX(0,B7-B$7)) -> 0 | D7: =IF(ISBLANK(B7), "", B7/B$3) -> 0.2320157154 | E7: =IF(ISBLANK(B7), "", MAX(0, (B7-B$7)/B$3)) -> 0 | F7: 0 | G7: 45.58249342 | H7: =IF(ISBLANK(G7), "", MAX(0,G7-G$7)) -> 0 | I7: =IF(ISBLANK(G7), "", G7/G$3) -> 0.5697811678 | J7: =IF(ISBLANK(G7), "", MAX(0, (G7-G$7)/G$3)) -> 0 | K7: 0 | L7: 51.03512263 | M7: =IF(ISBLANK(L7), "", MAX(0,L7-L$7)) -> 0 | N7: =IF(ISBLANK(L7), "", L7/L$3) -> 0.6379390328 | O7: =IF(ISBLANK(L7), "", MAX(0, (L7-L$7)/L$3)) -> 0 | P7: 0 | Q7: 74.44444444 | R7: =IF(ISBLANK(Q7), "", MAX(0,Q7-Q$7)) -> 0 | S7: =IF(ISBLANK(Q7), "", Q7/Q$3) -> 0.9305555556 | T7: =IF(ISBLANK(Q7), "", MAX(0, (Q7-Q$7)/Q$3)) -> 0 | U7: 0 | V7: 34.85612205 | W7: =IF(ISBLANK(V7), "", MAX(0,V7-V$7)) -> 0 | X7: =IF(ISBLANK(V7), "", V7/V$3) -> 0.4357015256 | Y7: =IF(ISBLANK(V7), "", MAX(0, (V7-V$7)/V$3)) -> 0 | Z7: 0 | AA7: 27.81451445 | AB7: =IF(ISBLANK(AA7), "", MAX(0,AA7-AA$7)) -> 0 | AC7: =IF(ISBLANK(AA7), "", AA7/AA$3) -> 0.1738407153 | AD7: =IF(ISBLANK(AA7), "", MAX(0, (AA7-AA$7)/AA$3)) -> 0 | AE7: 0 | AF7: 27.6816609 | AG7: =IF(ISBLANK(AF7), "", MAX(0,AF7-AF$7)) -> 0 | AH7: =IF(ISBLANK(AF7), "", AF7/AF$3) -> 0.1153402537 | AI7: =IF(ISBLANK(AF7), "", MAX(0, (AF7-AF$7)/AF$3)) -> 0 | AJ7: 0 | AK7: 32.8125 | AL7: =IF(ISBLANK(AK7), "", MAX(0,AK7-AK$7)) -> 0 | AM7: =IF(ISBLANK(AK7), "", AK7/AK$3) -> 0.41015625 | AN7: =IF(ISBLANK(AK7), "", MAX(0, (AK7-AK$7)/AK$3)) -> 0 | AO7: 0 | AP7: 36.92307692 | AQ7: =IF(ISBLANK(AP7), "", MAX(0,AP7-AP$7)) -> 0 | AR7: =IF(ISBLANK(AP7), "", AP7/AP$3) -> 0.2307692308 | AS7: =IF(ISBLANK(AP7), "", MAX(0, (AP7-AP$7)/AP$3)) -> 0 | AT7: 0 | AU7: 26.01532617 | AV7: =IF(ISBLANK(AU7), "", MAX(0,AU7-AU$7)) -> 0 | AW7: =IF(ISBLANK(AU7), "", AU7/AU$3) -> 0.1083971924 | AX7: =IF(ISBLANK(AU7), "", MAX(0, (AU7-AU$7)/AU$3)) -> 0 | AY7: 0 | AZ7: 18.78842412 | BA7: =IF(ISBLANK(AZ7), "", MAX(0,AZ7-AZ$7)) -> 0 | BB7: =IF(ISBLANK(AZ7), "", AZ7/AZ$3) -> 0.1174276507 | BC7: =IF(ISBLANK(AZ7), "", MAX(0, (AZ7-AZ$7)/AZ$3)) -> 0 | BD7: 0 | BE7: 20.05141206 | BF7: =IF(ISBLANK(BE7), "", MAX(0,BE7-BE$7)) -> 0 | BG7: =IF(ISBLANK(BE7), "", BE7/BE$3) -> 0.08354755024 | BH7: =IF(ISBLANK(BE7), "", MAX(0, (BE7-BE$7)/BE$3)) -> 0 | BI7: 0 | BJ7: 20.05141206 | BK7: =IF(ISBLANK(BJ7), "", MAX(0,BJ7-BJ$7)) -> 0 | BL7: =IF(ISBLANK(BJ7), "", BJ7/BJ$3) -> 0.06266066268 | BM7: =IF(ISBLANK(BJ7), "", MAX(0, (BJ7-BJ$7)/BJ$3)) -> 0 | BN7: 0 | BO7: 18.03337439 | BP7: =IF(ISBLANK(BO7), "", MAX(0,BO7-BO$7)) -> 0 | BQ7: =IF(ISBLANK(BO7), "", BO7/BO$3) -> 0.05635429497 | BR7: =IF(ISBLANK(BO7), "", MAX(0, (BO7-BO$7)/BO$3)) -> 0 | BS7: 0 | BT7: 23.69926451 | BU7: =IF(ISBLANK(BT7), "", MAX(0,BT7-BT$7)) -> 0 | BV7: =IF(ISBLANK(BT7), "", BT7/BT$3) -> 0.09874693544 | BW7: =IF(ISBLANK(BT7), "", MAX(0, (BT7-BT$7)/BT$3)) -> 0
A8: 7.5 | B8: 168.6350366 | C8: 131.5125221 | D8: 1.053968979 | E8: 0.8219532633 | F8: 30 | G8: 1672.568782 | H8: 1626.986289 | I8: 20.90710978 | J8: 20.33732861 | K8: 2 | L8: 198.3500637 | M8: 147.3149411 | N8: 2.479375796 | O8: 1.841436764 | P8: 7 | Q8: 788.8888889 | R8: 714.4444444 | S8: 9.861111111 | T8: 8.930555556 | U8: 4 | V8: 177.6940948 | W8: 142.8379727 | X8: 2.221176184 | Y8: 1.785474659 | Z8: 4 | AA8: 125.1569973 | AB8: 97.34248284 | AC8: 0.7822312331 | AD8: 0.6083905178 | AE8: 4 | AF8: 370.2422145 | AG8: 342.5605536 | AH8: 1.542675894 | AI8: 1.42733564 | AJ8: 15 | AK8: 295.3125 | AL8: 262.5 | AM8: 3.69140625 | AN8: 3.28125 | AO8: 15 | AP8: 267.6923077 | AQ8: 230.7692308 | AR8: 1.673076923 | AS8: 1.442307692 | AT8: 15 | AU8: 575.6165063 | AV8: 549.6011801 | AW8: 2.39840211 | AX8: 2.290004917 | AY8: 0.987 | AZ8: 60.73118904 | BA8: 41.94276492 | BB8: 0.3795699315 | BC8: 0.2621422808 | BD8: 0.987 | BE8: 89.80619651 | BF8: 69.75478445 | BG8: 0.3741924854 | BH8: 0.2906449352 | BI8: 0.987 | BJ8: 206.0536566 | BK8: 186.0022446 | BL8: 0.643917677 | BM8: 0.5812570143 | BN8: 1.808518632 | BO8: 157.4681016 | BP8: 139.4347272 | BQ8: 0.4920878174 | BR8: 0.4357335224 | BS8: 15 | BT8: 172.8973518 | BU8: 149.1980873 | BV8: 0.7204056325 | BW8: 0.6216586971
A9: 15 | B9: 217.4251237 | C9: 180.3026093 | D9: 1.358907023 | E9: 1.126891308 | F9: 180 | G9: 3274.312177 | H9: 3228.729683 | I9: 40.92890221 | J9: 40.35912104 | K9: 4.5 | L9: 484.0036665 | M9: 432.9685439 | N9: 6.050045832 | O9: 5.412106799 | P9: 14 | Q9: 734.4444444 | R9: 660 | S9: 9.180555556 | T9: 8.25 | U9: 7 | V9: 136.3716421 | W9: 101.51552 | X9: 1.704645526 | Y9: 1.268944 | Z9: 7 | AA9: 194.7099189 | AB9: 166.8954044 | AC9: 1.216936993 | AD9: 1.043096278 | AE9: 7 | AF9: 505.1903114 | AG9: 477.5086505 | AH9: 2.104959631 | AI9: 1.989619377 | AJ9: 30 | AK9: 229.6875 | AL9: 196.875 | AM9: 2.87109375 | AN9: 2.4609375 | AO9: 30 | AP9: 281.5384615 | AQ9: 244.6153846 | AR9: 1.759615385 | AS9: 1.528846154 | AT9: 30 | AU9: 749.2017075 | AV9: 723.1863814 | AW9: 3.121673781 | AX9: 3.013276589 | AY9: 1.971 | AZ9: 51.05178615 | BA9: 32.26336204 | BB9: 0.3190736635 | BC9: 0.2016460127 | BD9: 1.971 | BE9: 73.75928419 | BF9: 53.70787213 | BG9: 0.3073303508 | BH9: 0.2237828006 | BI9: 1.971 | BJ9: 143.2761906 | BK9: 123.2247785 | BL9: 0.4477380956 | BM9: 0.3850774329 | BN9: 3.986200772 | BO9: 145.6593681 | BP9: 127.6259937 | BQ9: 0.4551855253 | BR9: 0.3988312303 | BS9: 30 | BT9: 310.7633775 | BU9: 287.064113 | BV9: 1.294847406 | BW9: 1.196100471
A10: 30 | B10: 182.4304299 | C10: 145.3079154 | D10: 1.140190187 | E10: 0.9081744715 | F10: 365 | G10: 3252.519749 | H10: 3206.937256 | I10: 40.65649687 | J10: 40.0867157 | K10: 8 | L10: 1072.190302 | M10: 1021.155179 | N10: 13.40237877 | O10: 12.76443974 | P10: 21 | Q10: 576.6666667 | R10: 502.2222222 | S10: 7.208333333 | T10: 6.277777778 | U10: 14 | V10: 321.2197965 | W10: 286.3636745 | X10: 4.015247457 | Y10: 3.579545931 | Z10: 14 | AA10: 285.4730713 | AB10: 257.6585569 | AC10: 1.784206696 | AD10: 1.61036598 | AE10: 14 | AF10: 795.8477509 | AG10: 768.16609 | AH10: 3.316032295 | AI10: 3.200692042 | AJ10: 45 | AK10: 525 | AL10: 492.1875 | AM10: 6.5625 | AN10: 6.15234375 | AO10: 45 | AP10: 452.3076923 | AQ10: 415.3846154 | AR10: 2.826923077 | AS10: 2.596153846 | AT10: 45 | AU10: 893.304265 | AV10: 867.2889388 | AW10: 3.722101104 | AX10: 3.613703912 | AY10: 3.942 | AZ10: 66.63214205 | BA10: 47.84371793 | BB10: 0.4164508878 | BC10: 0.2990232371 | BD10: 3.942 | BE10: 89.33964009 | BF10: 69.28822803 | BG10: 0.3722485004 | BH10: 0.2887009501 | BI10: 3.942 | BJ10: 120.9406234 | BK10: 100.8892114 | BL10: 0.3779394482 | BM10: 0.3152787856 | BN10: 7 | BO10: 181.7498037 | BP10: 163.7164293 | BQ10: 0.5679681367 | BR10: 0.5116138417 | BS10: 45 | BT10: 441.850004 | BU10: 418.1507395 | BV10: 1.841041683 | BW10: 1.742294748
A11: 60 | B11: 248.1866843 | C11: 211.0641698 | D11: 1.551166777 | E11: 1.319151061 | P11: 28 | Q11: 457.7777778 | R11: 383.3333333 | S11: 5.722222222 | T11: 4.791666667 | U11: 28 | V11: 249.9391947 | W11: 215.0830726 | X11: 3.124239934 | Y11: 2.688538408 | Z11: 28 | AA11: 294.0320233 | AB11: 266.2175088 | AC11: 1.837700146 | AD11: 1.66385943 | AE11: 28 | AF11: 615.916955 | AG11: 588.2352941 | AH11: 2.566320646 | AI11: 2.450980392 | AJ11: 60 | AK11: 332.8125 | AL11: 300 | AM11: 4.16015625 | AN11: 3.75 | AO11: 60 | AP11: 327.6923077 | AQ11: 290.7692308 | AR11: 2.048076923 | AS11: 1.817307692 | AT11: 60 | AU11: 742.4759468 | AV11: 716.4606206 | AW11: 3.093649778 | AX11: 2.985252586 | AY11: 6.69 | AZ11: 87.92157142 | BA11: 69.13314731 | BB11: 0.5495098214 | BC11: 0.4320821707 | BD11: 6.69 | BE11: 119.469985 | BF11: 99.41857298 | BG11: 0.4977916043 | BH11: 0.4142440541 | BI11: 6.69 | BJ11: 149.7816956 | BK11: 129.7302835 | BL11: 0.4680677987 | BM11: 0.405407136 | BN11: 14 | BO11: 239.2034453 | BP11: 221.1700709 | BQ11: 0.7475107666 | BR11: 0.6911564716 | BS11: 60 | BT11: 537.7281395 | BU11: 514.028875 | BV11: 2.240533914 | BW11: 2.141786979
A12: 90 | B12: 281.0528059 | C12: 243.9302915 | D12: 1.756580037 | E12: 1.524564322 | P12: 42 | Q12: 605.5555556 | R12: 531.1111111 | S12: 7.569444444 | T12: 6.638888889 | AJ12: 75 | AK12: 360.9375 | AL12: 328.125 | AM12: 4.51171875 | AN12: 4.1015625 | AO12: 75 | AP12: 489.2307692 | AQ12: 452.3076923 | AR12: 3.057692308 | AS12: 2.826923077 | AT12: 75 | AU12: 1019.276511 | AV12: 993.2611846 | AW12: 4.246985461 | AX12: 4.138588269 | AY12: 13.8 | AZ12: 116.1318067 | BA12: 97.34338259 | BB12: 0.725823792 | BC12: 0.6083961412 | BD12: 13.8 | BE12: 147.6802203 | BF12: 127.6288083 | BG12: 0.6153342513 | BH12: 0.5317867011 | BI12: 13.8 | BJ12: 202.0149866 | BK12: 181.9635745 | BL12: 0.631296833 | BM12: 0.5686361704 | BN12: 21 | BO12: 244.9830451 | BP12: 226.9496707 | BQ12: 0.765572016 | BR12: 0.709217721 | BS12: 75 | BT12: 597.8356003 | BU12: 574.1363358 | BV12: 2.490981668 | BW12: 2.392234733
A13: 120 | B13: 345.7632013 | C13: 308.6406869 | D13: 2.161020008 | E13: 1.929004293 | P13: 49 | Q13: 583.3333333 | R13: 508.8888889 | S13: 7.291666667 | T13: 6.361111111 | AJ13: 90 | AK13: 332.8125 | AL13: 300 | AM13: 4.16015625 | AN13: 3.75 | AO13: 90 | AP13: 429.2307692 | AQ13: 392.3076923 | AR13: 2.682692308 | AS13: 2.451923077 | AT13: 90 | AU13: 765.2014987 | AV13: 739.1861725 | AW13: 3.188339578 | AX13: 3.079942385 | AY13: 20.7 | AZ13: 114.1867264 | BA13: 95.39830231 | BB13: 0.7136670402 | BC13: 0.5962393895 | BD13: 20.7 | BE13: 153.3130677 | BF13: 133.2616556 | BG13: 0.6388044486 | BH13: 0.5552568984 | BI13: 20.7 | BJ13: 225.3033802 | BK13: 205.2519681 | BL13: 0.7040730631 | BM13: 0.6414124005 | BN13: 28 | BO13: 227.5393286 | BP13: 209.5059542 | BQ13: 0.7110604019 | BR13: 0.6547061069 | BS13: 90 | BT13: 552.6953707 | BU13: 528.9961062 | BV13: 2.302897378 | BW13: 2.204150442
A14: 180 | B14: 408.3414379 | C14: 371.2189235 | D14: 2.552133987 | E14: 2.320118272 | AJ14: 105 | AK14: 379.6875 | AL14: 346.875 | AM14: 4.74609375 | AN14: 4.3359375 | AO14: 105 | AP14: 516.9230769 | AQ14: 480 | AR14: 3.230769231 | AS14: 3 | AT14: 105 | AU14: 1030.963042 | AV14: 1004.947716 | AW14: 4.295679343 | AX14: 4.18728215 | AY14: 27.597 | AZ14: 122.8449622 | BA14: 104.0565381 | BB14: 0.7677810136 | BC14: 0.6503533628 | BD14: 27.597 | BE14: 153.1829576 | BF14: 133.1315455 | BG14: 0.6382623232 | BH14: 0.554714773 | BI14: 27.597 | BJ14: 211.2541179 | BK14: 191.2027058 | BL14: 0.6601691185 | BM14: 0.5975084558 | BN14: 35 | BO14: 206.9841085 | BP14: 188.9507341 | BQ14: 0.6468253391 | BR14: 0.5904710441 | BS14: 105 | BT14: 614.872437 | BU14: 591.1731725 | BV14: 2.561968488 | BW14: 2.463221552
AJ15: 120 | AK15: 328.125 | AL15: 295.3125 | AM15: 4.1015625 | AN15: 3.69140625 | AO15: 120 | AP15: 452.3076923 | AQ15: 415.3846154 | AR15: 2.826923077 | AS15: 2.596153846 | AT15: 120 | AU15: 799.0078459 | AV15: 772.9925197 | AW15: 3.329199358 | AX15: 3.220802165 | AY15: 88.707 | AZ15: 275.1197775 | BA15: 256.3313534 | BB15: 1.71949861 | BC15: 1.602070959 | BD15: 88.707 | BE15: 390.05168 | BF15: 370.0002679 | BG15: 1.625215333 | BH15: 1.541667783 | BI15: 88.707 | BJ15: 498.7212125 | BK15: 478.6698004 | BL15: 1.558503789 | BM15: 1.495843126 | BN15: 42 | BO15: 183.0992041 | BP15: 165.0658297 | BQ15: 0.5721850128 | BR15: 0.5158307178 | BS15: 120 | BT15: 621.7003052 | BU15: 598.0010407 | BV15: 2.590417938 | BW15: 2.491671003
AJ16: 135 | AK16: 403.125 | AL16: 370.3125 | AM16: 5.0390625 | AN16: 4.62890625 | AO16: 135 | AP16: 475.3846154 | AQ16: 438.4615385 | AR16: 2.971153846 | AS16: 2.740384615 | AT16: 135 | AU16: 961.5540267 | AV16: 935.5387005 | AW16: 4.006475111 | AX16: 3.898077919 | AY16: 177.417 | AZ16: 361.4011732 | BA16: 342.612749 | BB16: 2.258757332 | BC16: 2.141329681 | BD16: 177.417 | BE16: 457.4408263 | BF16: 437.3894142 | BG16: 1.906003443 | BH16: 1.822455893 | BI16: 177.417 | BJ16: 672.2276305 | BK16: 652.1762185 | BL16: 2.100711345 | BM16: 2.038050683 | BN16: 56 | BO16: 161.3223964 | BP16: 143.289022 | BQ16: 0.5041324889 | BR16: 0.4477781939 | BS16: 135 | BT16: 602.5417792 | BU16: 578.8425147 | BV16: 2.510590747 | BW16: 2.411843811
AJ17: 150 | AK17: 342.1875 | AL17: 309.375 | AM17: 4.27734375 | AN17: 3.8671875 | AO17: 150 | AP17: 470.7692308 | AQ17: 433.8461538 | AR17: 2.942307692 | AS17: 2.711538462 | AT17: 150 | AU17: 810.7048211 | AV17: 784.6894949 | AW17: 3.377936755 | AX17: 3.269539562 | BN17: 70 | BO17: 135.3597094 | BP17: 117.326335 | BQ17: 0.4229990919 | BR17: 0.366644797 | BS17: 150 | BT17: 561.9216702 | BU17: 538.2224057 | BV17: 2.341340293 | BW17: 2.242593357
AJ18: 165 | AK18: 421.875 | AL18: 389.0625 | AM18: 5.2734375 | AN18: 4.86328125 | AO18: 165 | AP18: 627.6923077 | AQ18: 590.7692308 | AR18: 3.923076923 | AS18: 3.692307692 | AT18: 165 | AU18: 1032.21629 | AV18: 1006.200963 | AW18: 4.300901207 | AX18: 4.192504014 | BN18: 84 | BO18: 126.0883142 | BP18: 108.0549398 | BQ18: 0.3940259818 | BR18: 0.3376716868 | BS18: 165 | BT18: 499.8384148 | BU18: 476.1391503 | BV18: 2.082660062 | BW18: 1.983913126
AJ19: 180 | AK19: 318.75 | AL19: 285.9375 | AM19: 3.984375 | AN19: 3.57421875 | AO19: 180 | AP19: 452.3076923 | AQ19: 415.3846154 | AR19: 2.826923077 | AS19: 2.596153846 | AT19: 180 | AU19: 947.7474184 | AV19: 921.7320923 | AW19: 3.948947577 | AX19: 3.840550384 | BS19: 180 | BT19: 565.404399 | BU19: 541.7051345 | BV19: 2.355851662 | BW19: 2.257104727
BS20: 210 | BT20: 516.9237204 | BU20: 493.2244559 | BV20: 2.153848835 | BW20: 2.0551019
BS21: 240 | BT21: 593.833003 | BU21: 570.1337385 | BV21: 2.474304179 | BW21: 2.375557244
BS22: 270 | BT22: 615.3930874 | BU22: 591.6938229 | BV22: 2.564137864 | BW22: 2.465390929
BS23: 300 | BT23: 661.8005456 | BU23: 638.1012811 | BV23: 2.757502273 | BW23: 2.658755338
BS24: 330 | BT24: 618.9665 | BU24: 595.2672354 | BV24: 2.579027083 | BW24: 2.480280148
BS25: 360 | BT25: 689.0995103 | BU25: 665.4002458 | BV25: 2.871247959 | BW25: 2.772501024
BS26: 450 | BT26: 716.4907223 | BU26: 692.7914578 | BV26: 2.98537801 | BW26: 2.886631074
BS27: 540 | BT27: 662.5494691 | BU27: 638.8502046 | BV27: 2.760622788 | BW27: 2.661875852
BS28: 630 | BT28: 669.6087374 | BU28: 645.9094729 | BV28: 2.790036406 | BW28: 2.69128947
BS29: 720 | BT29: 643.9115934 | BU29: 620.2123289 | BV29: 2.682964973 | BW29: 2.584218037
